Workbook

Sheet Titulní list
A1: Výpočet montážních tabulek s průhybem vedení
A4: Zpracoval: | B4: Bc. Kamil Mádle
A5: Aktualizace: | B5: 2021-08-10
A7: Manuál
A8: Karta: | B8: Popis:
A9: Zadání vstupních údajů | B9: Tato karta slouží k nastavení použitých lan, vstupních parametrů navrhovaného vedení a zvolení námrazových a větrných oblastí. V této kartě se nastavují pouze údaje v kolonkách a ovládacích prvcích, které jsou podbarvené zeleně. Na základě zadaných vstupních údajů dojde k výpočtům a následně k sestavení montážních tabulek a grafu v kartě výpis. Pro výpočet je nutné zvolit si typ lan nebo kabelů, dále je nutné si zvolit vstupní stavy jako je úroveň spolehlivosti, počáteční teplota, namáhání, námrazová oblast, větrná oblast a oblast terénu. Pro výpočet je nutné stanovit rozpětí PB, nadmořskou výšku umístění PB a výšku uchycení lan nebo kabelů na PB.
A10: Výpis | B10: V této kartě jsou z provedených výpočtů sestaveny montážní tabulky pro vodiče a také pro zemnící lana, KZL nebo SDOK. Dále jsou v této kartě sepsány základní nastavené údaje a zvolené parametry lan z karty "Zadání vstupních údajů". V této kartě je dále zobrazen graf s vykreslenýma řetězovkama pro nastavené lana a důležité zatěžovací stavy.
A11: Mezi výpočty | B11: V této kartě jsou zobrazeny výpočty, které jsou nutné pro sestavení montážních tabulek a sestavení grafu "Průhyb vedení - podélný profil".
A12: Parametry-vodiče, lana, KZL,SDOK | B12: V této kartě jsou sepsány data a parametry standardně používaných vodičů, lan, KZL a SDOK pro venkovní vedení VN. Tyto data a parametry jsou získány z katalogových listů. Tyto údaje slouží přímo pro výpočet.
A13: Data-námraza, vítr, součinitelé | B13: V této kartě jsou sepsány údaje k námrazovým a větným oblastem i s dalšími součinitely vycházejících z příslušných norem. Tyto údaje slouží přímo pro výpočet.

Sheet Zadání vstupních údajů
B2: Vstupní údaje - Vodiče | G2: Vstupní stav - pro výpočty | K2: Levý PB | L2: Nadmořská výška PB | N2: 445.2 | O2: m
C3: 24 | G3: Úroveň spolehlivosti: | H3: 1 | L3: Výška uchycení vodiče | N3: 10.5 | O3: m
L4: Výška uchycení lan, KZL nebo SDOK | N4: 8.5 | O4: m
B5: Typ lana: | C5: =INDEX('Parametry-vodiče,lana,KZL,SDOK'!$A$3:$H$40,$C$3,1) -> 110-AL1/22-ST1A | E5: =INDEX('Parametry-vodiče,lana,KZL,SDOK'!$A$4:$H$40,$C$3,2) -> 16.88 | G5: Součinitel místních podmínek: | H5: 1 | I5: KIc [-] | K5: Pravý PB | L5: Nadmořská výška PB | N5: 436 | O5: m
B6: Průměr: | C6: =INDEX('Parametry-vodiče,lana,KZL,SDOK'!$A$3:$H$40,$C$3,2) -> 14.96 | D6: d [mm] | G6: Součinitel výšky: | H6: 1 | I6: Kh [-] | L6: Výška uchycení vodiče | N6: 10.5 | O6: m
B7: Průřez: | C7: =INDEX('Parametry-vodiče,lana,KZL,SDOK'!$A$3:$H$40,$C$3,3) -> 132.33 | D7: S [mm2] | G7: Počáteční teplota: | H7: -5 | I7: t [°C] | L7: Výška uchycení lan, KZL nebo SDOK | N7: 8.5 | O7: m
B8: Hmotnost vodiče: | C8: =INDEX('Parametry-vodiče,lana,KZL,SDOK'!$A$3:$H$40,$C$3,4) -> 476.9 | D8: m [kg.km-1] | G8: Vstupní stav - pro výpočty vodičů | K8: Převýšní vodiče | N8: =(N5+N6)-(N2+N3) -> -9.2 | O8: m
B9: Měrná tíha: | C9: =INDEX('Parametry-vodiče,lana,KZL,SDOK'!$A$3:$H$40,$C$3,8) -> 0.03534188306 | D9: γ [N.m-1.mm-2] | G9: Počáteční namáhání: | H9: 30 | I9: σpoc[Mpa] | K9: Převýšení lana, KZL nebo SDOK | N9: =(N5+N7)-(N2+N4) -> -9.2 | O9: m
B10: Modul pružnosti: | C10: =INDEX('Parametry-vodiče,lana,KZL,SDOK'!$A$3:$H$40,$C$3,6) -> 77400 | D10: E [Mpa] | G10: Horiz. tah: | H10: =(H9*C7) -> 3969.9 | I10: F [N] | K10: Referenční výška - vodiče | N10: =IF(AND('Zadání vstupních údajů'!N6<=24,'Zadání vstupních údajů'!N3<=24),'Data-námraza,vítr,součinitelé'!$U$15,'Data-námraza,vítr,součinitelé'!$U$16) -> 10 | O10: m
B11: Souč. teplotní rozt.: | C11: =INDEX('Parametry-vodiče,lana,KZL,SDOK'!$A$3:$H$40,$C$3,7)*10^(-5) -> 1.83e-05 | D11: α [K-1] | G11: Vstupní stav - pro výpočty lan a kabelů | K11: Referenční výška - lana, KZL nebo SDOK | N11: =IF(AND('Zadání vstupních údajů'!N7<=24,'Zadání vstupních údajů'!N4<=24),'Data-námraza,vítr,součinitelé'!$U$15,'Data-námraza,vítr,součinitelé'!$U$16) -> 10 | O11: m
B12: Zaručená pevnost: | C12: =INDEX('Parametry-vodiče,lana,KZL,SDOK'!$A$3:$H$40,$C$3,5) -> 45590 | D12: F [N] | G12: Počáteční namáhání: | H12: 20 | I12: σpoc [Mpa] | K12: Rozpětí | N12: 110 | O12: m
B13: Dovolený tah: | C13: 65 | D13: % | G13: Horizontální tah: | H13: =(H12*C22) -> 3560 | I13: F [N] | K13: Zatížení námrazou
C14: =C12*C13*0.01 -> 29633.5 | D14: Fdov [N] | K14: Námrazová oblast | N14: 4
B15: Dovoléné namáhání: | C15: =C14/C7 -> 223.9363712 | D15: σdov [MPa]
K16: Vodiče
B17: Vstupní údaje - zemnící lana, KZL, SDOK | K17: I50 - vodič | N17: =IF($C$6<=30,$H$5*$H$6*(INDEX('Data-námraza,vítr,součinitelé'!$B$3:$C$11,$N$14,1)+INDEX('Data-námraza,vítr,součinitelé'!$B$3:$C$11,$N$14,2)*$C$6),$H$5*$H$6*(INDEX('Data-námraza,vítr,součinitelé'!$D$3:$E$11,$N$14,1)+INDEX('Data-námraza,vítr,součinitelé'!$D$3:$E$11,$N$14,2)*$C$6)) -> 14.125888 | O17: N/m
K18: Průměr omrzlého vodiče | N18: =SQRT(($C$6*10^-3)^2+(4*$N$17)/(9.80665*PI()*'Data-námraza,vítr,součinitelé'!$U$20))*1000 -> 62.38470309 | O18: mm
C19: 8 | K19: Přetížení námrazou vodiče | N19: =((($C$8/1000)*9.80665)+$N$17)/(($C$8/1000)*9.80665) -> 4.020422943 | O19: -
B20: Typ lana: | C20: =INDEX('Parametry-vodiče,lana,KZL,SDOK'!$J$3:$Q$11,$C$19,1) -> SDOK 3 -STD7D155/48657N | K20: Lana, KZL nebo SDOK
B21: Průměr: | C21: =INDEX('Parametry-vodiče,lana,KZL,SDOK'!$J$3:$Q$11,$C$19,2) -> 15.5 | D21: d [mm] | K21: I50 - lana, KZL nebo SDOK | N21: =IF($C$21<=30,$H$5*$H$6*(INDEX('Data-námraza,vítr,součinitelé'!$B$3:$C$11,$N$14,1)+INDEX('Data-námraza,vítr,součinitelé'!$B$3:$C$11,$N$14,2)*$C$21),$H$5*$H$6*(INDEX('Data-námraza,vítr,součinitelé'!$D$3:$E$11,$N$14,1)+INDEX('Data-námraza,vítr,součinitelé'!$D$3:$E$11,$N$14,2)*$C$21)) -> 14.32315 | O21: N/m
B22: Průřez: | C22: =INDEX('Parametry-vodiče,lana,KZL,SDOK'!$J$3:$Q$11,$C$19,3) -> 178 | D22: S [mm2] | K22: Průměr omrzlého lana, KZL nebo SDOK | N22: =SQRT(($C$21*10^-3)^2+(4*$N$21)/(9.80665*PI()*'Data-námraza,vítr,součinitelé'!$U$20))*1000 -> 62.92473542 | O22: mm
B23: Hmotnost vodiče: | C23: =INDEX('Parametry-vodiče,lana,KZL,SDOK'!$J$3:$Q$11,$C$19,4) -> 175 | D23: m [kg.km-1] | K23: Přetížení námrazou lana, KZL nebo SDOK | N23: =((($C$23/1000)*9.80665)+$N$21)/(($C$23/1000)*9.80665) -> 9.346027586 | O23: -
B24: Měrná tíha: | C24: =INDEX('Parametry-vodiče,lana,KZL,SDOK'!$J$3:$Q$11,$C$19,8) -> 0.009641369382 | D24: γ [N.m-1.mm-2] | K24: Zatížení větrem
B25: Modul pružnosti: | C25: =INDEX('Parametry-vodiče,lana,KZL,SDOK'!$J$3:$Q$11,$C$19,6) -> 17790 | D25: E [Mpa] | K25: Větrná oblast | N25: 3
B26: Souč. teplotní rozt.: | C26: =INDEX('Parametry-vodiče,lana,KZL,SDOK'!$J$3:$Q$11,$C$19,7)*10^(-5) -> 6e-06 | D26: α [K-1]
B27: Zaručená pevnost: | C27: =INDEX('Parametry-vodiče,lana,KZL,SDOK'!$J$3:$Q$11,$C$19,5)*1000 -> 41600 | D27: F [N] | K27: Kategorie terénu | N27: 2
B28: Dovolený tah: | C28: 25 | D28: %
C29: =C27*C28*0.01 -> 10400 | D29: Fdov [N] | K29: Vodiče
B30: Dovoléné namáhání: | C30: =C29/C22 -> 58.42696629 | D30: σdov [MPa] | K30: Střední rychlost větru | N30: =IF($N$10=10,INDEX('Data-námraza,vítr,součinitelé'!$I$5:$L$9,'Zadání vstupních údajů'!$N$25,'Zadání vstupních údajů'!$N$27),INDEX('Data-námraza,vítr,součinitelé'!$O$5:$R$9,'Zadání vstupních údajů'!$N$25,'Zadání vstupních údajů'!$N$27)) -> 27.5 | O30: m/s
K31: Střední tlak větru | N31: =IF($N$10=10,INDEX('Data-námraza,vítr,součinitelé'!$I$13:$L$17,'Zadání vstupních údajů'!$N$25,'Zadání vstupních údajů'!$N$27),INDEX('Data-námraza,vítr,součinitelé'!O13:R17,'Zadání vstupních údajů'!$N$25,'Zadání vstupních údajů'!$N$27)) -> 472.65625 | O31: N/m2
K32: Maximální tlak větru | N32: =IF($N$10=10,INDEX('Data-námraza,vítr,součinitelé'!I21:L25,'Zadání vstupních údajů'!$N$25,'Zadání vstupních údajů'!$N$27),INDEX('Data-námraza,vítr,součinitelé'!O21:R25,'Zadání vstupních údajů'!$N$25,'Zadání vstupních údajů'!$N$27)) -> 1097.117474 | O32: N/m2
K33: Zatížení vodiče větrem | N33: =$N$32*($C$6*10^(-3))*'Data-námraza,vítr,součinitelé'!$U$10*IF($N$10=10,INDEX('Data-námraza,vítr,součinitelé'!$Z$5:$AC$7,CEILING($N$12,100)/100,'Zadání vstupních údajů'!$N$27),INDEX('Data-námraza,vítr,součinitelé'!$Z$11:$AC$13,CEILING($N$12,100)/100,'Zadání vstupních údajů'!$N$27)) -> 10.34011277 | O33: N/m
K34: Přetížení větrem | N34: =SQRT((($C$8/1000)*9.80665)^2+$N$33^2)/(($C$8/1000)*9.80665) -> 2.426574313 | O34: -
K35: Lana, KZL nebo SDOK
K36: Střední rychlost větru | N36: =IF($N$11=10,INDEX('Data-námraza,vítr,součinitelé'!$I$5:$L$9,'Zadání vstupních údajů'!$N$25,'Zadání vstupních údajů'!$N$27),INDEX('Data-námraza,vítr,součinitelé'!$O$5:$R$9,'Zadání vstupních údajů'!$N$25,'Zadání vstupních údajů'!$N$27)) -> 27.5 | O36: m/s
K37: Střední tlak větru | N37: =IF($N$11=10,INDEX('Data-námraza,vítr,součinitelé'!$I$13:$L$17,'Zadání vstupních údajů'!$N$25,'Zadání vstupních údajů'!$N$27),INDEX('Data-námraza,vítr,součinitelé'!O13:R17,'Zadání vstupních údajů'!$N$25,'Zadání vstupních údajů'!$N$27)) -> 472.65625 | O37: N/m2
K38: Maximální tlak větru | N38: =IF($N$11=10,INDEX('Data-námraza,vítr,součinitelé'!I21:L25,'Zadání vstupních údajů'!$N$25,'Zadání vstupních údajů'!$N$27),INDEX('Data-námraza,vítr,součinitelé'!O21:R25,'Zadání vstupních údajů'!$N$25,'Zadání vstupních údajů'!$N$27)) -> 1097.117474 | O38: N/m2
K39: Zatížení lan větrem | N39: =$N$38*($C$21*10^(-3))*(COS(0)^2)*'Data-námraza,vítr,součinitelé'!$U$10*IF($N$10=10,INDEX('Data-námraza,vítr,součinitelé'!$Z$5:$AC$7,CEILING($N$12,100)/100,'Zadání vstupních údajů'!$N$27),INDEX('Data-námraza,vítr,součinitelé'!$Z$11:$AC$13,CEILING($N$12,100)/100,'Zadání vstupních údajů'!$N$27)) -> 10.71335214 | O39: N/m
K40: Přetížení větrem | N40: =SQRT((($C$23/1000)*9.80665)^2+$N$39^2)/(($C$23/1000)*9.80665) -> 6.322203787 | O40: -

Sheet Výpis
C1: Úsek vedení mezi podpěrnými body: | J1: 196 a 195
C3: Nadmořská výška terénu u levého PB [m]: | K3: ='Zadání vstupních údajů'!N2 -> 445.2 | P3: Prametry vodiče: | R3: ='Zadání vstupních údajů'!C5 -> 110-AL1/22-ST1A
C4: Nadmořská výška terénu u pravého PB [m]: | K4: ='Zadání vstupních údajů'!N5 -> 436
C5: Rozpětí [m]: | K5: =Rozpeti -> 110 | P5: E [Mpa]: | R5: ='Zadání vstupních údajů'!C10 -> 77400
C6: Výchozí vodorovná složka namáhání vodič [Mpa]: | K6: ='Zadání vstupních údajů'!$H$9 -> 30 | P6: α [K-1]: | R6: ='Zadání vstupních údajů'!C11 -> 1.83e-05
C7: Výchozí vodorovná složka namáhání Lana, KZL nebo SDOK [Mpa]: | K7: ='Zadání vstupních údajů'!$H$12 -> 20 | P7: d [mm]: | R7: ='Zadání vstupních údajů'!C6 -> 14.96
C8: Výchozí teplota vodiče [°C]: | K8: ='Zadání vstupních údajů'!$H$7 -> -5 | P8: S [mm2]: | R8: ='Zadání vstupních údajů'!C7 -> 132.33
C9: Námrazová oblast: | K9: =INDEX('Data-námraza,vítr,součinitelé'!$A$3:$C$11,'Zadání vstupních údajů'!$N$14,1) -> I2 | P9: γ [N.m-1.mm-2]: | R9: ='Zadání vstupních údajů'!C9 -> 0.03534188306
C10: Větrná oblast: | K10: =INDEX('Data-námraza,vítr,součinitelé'!$H$5:$H$9,'Zadání vstupních údajů'!$N$25,1) -> III. | P10: m [kg.km-1]: | R10: ='Zadání vstupních údajů'!C8 -> 476.9
C11: Oblast terénu: | K11: =INDEX('Data-námraza,vítr,součinitelé'!$I$4:$L$4,1,'Zadání vstupních údajů'!$N$27) -> II. | P11: σdov [MPa]: | R11: ='Zadání vstupních údajů'!C15 -> 223.9363712
C12: Úroveň spolehlivosti: | K12: =INDEX('Data-námraza,vítr,součinitelé'!$AF$3:$AF$5,'Zadání vstupních údajů'!$H$3,1) -> Úroveň spolehlivosti 1
A14: Vodič | P14: Prametry Lana, KZL nebo SDOK: | R14: ='Zadání vstupních údajů'!C20 -> SDOK 3 -STD7D155/48657N
B15: zadaná teplota | C15: min. tepl. | D15: -20 °C | E15: -10 °C | F15: -5 °C | G15: 0 °C | H15: +10 °C | I15: +20 °C | J15: +30 °C | K15: +40 °C | L15: +60 °C | M15: -5 °C + I | N15: -5 °C + W
A16: Teplota [°C] | B16: ='Mezi výpočty'!B3 -> -5 | C16: ='Mezi výpočty'!C3 -> -30 | D16: ='Mezi výpočty'!D3 -> -20 | E16: ='Mezi výpočty'!E3 -> -10 | F16: ='Mezi výpočty'!F3 -> -5 | G16: ='Mezi výpočty'!G3 -> 0 | H16: ='Mezi výpočty'!H3 -> 10 | I16: ='Mezi výpočty'!I3 -> 20 | J16: ='Mezi výpočty'!J3 -> 30 | K16: ='Mezi výpočty'!K3 -> 40 | L16: ='Mezi výpočty'!L3 -> 60 | M16: ='Mezi výpočty'!M3 -> -5 | N16: ='Mezi výpočty'!N3 -> -5 | P16: E [Mpa]: | R16: ='Zadání vstupních údajů'!C25 -> 17790
A17: Namáhání vodiče [Mpa] | B17: ='Mezi výpočty'!B10 -> 30 | C17: ='Mezi výpočty'!C10 -> 40.69104767 | D17: ='Mezi výpočty'!D10 -> 35.58365631 | E17: ='Mezi výpočty'!E10 -> 31.63347435 | F17: ='Mezi výpočty'!F10 -> 30 | G17: ='Mezi výpočty'!G10 -> 28.55166054 | H17: ='Mezi výpočty'!H10 -> 26.10735321 | I17: ='Mezi výpočty'!I10 -> 24.13167572 | J17: ='Mezi výpočty'!J10 -> 22.50493431 | K17: ='Mezi výpočty'!K10 -> 21.14258003 | L17: ='Mezi výpočty'!L10 -> 18.98638344 | M17: ='Mezi výpočty'!M10 -> 84.96829224 | N17: ='Mezi výpočty'!N10 -> 58.81377792 | P17: α [K-1]: | R17: ='Zadání vstupních údajů'!C26 -> 6e-06
A18: Tahové síly vodičů [kN] | B18: ='Mezi výpočty'!B9 -> 3.9699 | C18: ='Mezi výpočty'!C9 -> 5.384646338 | D18: ='Mezi výpočty'!D9 -> 4.70878524 | E18: ='Mezi výpočty'!E9 -> 4.186057661 | F18: ='Mezi výpočty'!F9 -> 3.9699 | G18: ='Mezi výpočty'!G9 -> 3.778241239 | H18: ='Mezi výpočty'!H9 -> 3.45478605 | I18: ='Mezi výpočty'!I9 -> 3.193344648 | J18: ='Mezi výpočty'!J9 -> 2.978077957 | K18: ='Mezi výpočty'!K9 -> 2.797797616 | L18: ='Mezi výpočty'!L9 -> 2.51246812 | M18: ='Mezi výpočty'!M9 -> 11.24385411 | N18: ='Mezi výpočty'!N9 -> 7.782827233 | P18: d [mm]: | R18: ='Zadání vstupních údajů'!C21 -> 15.5
A19: Průhyb vodiče [m] | B19: ='Mezi výpočty'!B20 -> 1.783311812 | C19: ='Mezi výpočty'!C20 -> 1.313150569 | D19: ='Mezi výpočty'!D20 -> 1.502487491 | E19: ='Mezi výpočty'!E20 -> 1.690889605 | F19: ='Mezi výpočty'!F20 -> 1.783311812 | G19: ='Mezi výpočty'!G20 -> 1.874113969 | H19: ='Mezi výpočty'!H20 -> 2.050235274 | I19: ='Mezi výpočty'!I20 -> 2.218702649 | J19: ='Mezi výpočty'!J20 -> 2.379658408 | K19: ='Mezi výpočty'!K20 -> 2.533549406 | L19: ='Mezi výpočty'!L20 -> 2.822356588 | M19: ='Mezi výpočty'!M20 -> 2.534561434 | N19: ='Mezi výpočty'!N20 -> 2.20899365 | P19: S [mm2]: | R19: ='Zadání vstupních údajů'!C22 -> 178
P20: γ [N.m-1.mm-2]: | R20: ='Zadání vstupních údajů'!C24 -> 0.009641369382
A21: Lana, KZL nebo SDOK | P21: m [kg.km-1]: | R21: ='Zadání vstupních údajů'!C23 -> 175
B22: zadaná teplota | C22: min. tepl. | D22: -20 °C | E22: -10 °C | F22: -5 °C | G22: 0 °C | H22: +10 °C | I22: +20 °C | J22: +30 °C | K22: +40 °C | L22: +60 °C | M22: -5 °C + I | N22: -5 °C + W | P22: σdov [MPa]: | R22: ='Zadání vstupních údajů'!C30 -> 58.42696629
A23: Teplota [°C] | B23: ='Mezi výpočty'!B24 -> -5 | C23: ='Mezi výpočty'!C24 -> -30 | D23: ='Mezi výpočty'!D24 -> -20 | E23: ='Mezi výpočty'!E24 -> -10 | F23: ='Mezi výpočty'!F24 -> -5 | G23: ='Mezi výpočty'!G24 -> 0 | H23: ='Mezi výpočty'!H24 -> 10 | I23: ='Mezi výpočty'!I24 -> 20 | J23: ='Mezi výpočty'!J24 -> 30 | K23: ='Mezi výpočty'!K24 -> 40 | L23: ='Mezi výpočty'!L24 -> 60 | M23: ='Mezi výpočty'!M24 -> -5 | N23: ='Mezi výpočty'!N24 -> -5
A24: Namáhání lan [Mpa] | B24: ='Mezi výpočty'!B31 -> 20 | C24: ='Mezi výpočty'!C31 -> 22.26586533 | D24: ='Mezi výpočty'!D31 -> 21.34645081 | E24: ='Mezi výpočty'!E31 -> 20.44412422 | F24: ='Mezi výpočty'!F31 -> 20 | G24: ='Mezi výpočty'!G31 -> 19.56092262 | H24: ='Mezi výpočty'!H31 -> 18.6990242 | I24: ='Mezi výpočty'!I31 -> 17.86071014 | J24: ='Mezi výpočty'!J31 -> 17.04832649 | K24: ='Mezi výpočty'!K31 -> 16.26419258 | L24: ='Mezi výpočty'!L31 -> 14.78935528 | M24: ='Mezi výpočty'!M31 -> 48.66539001 | N24: ='Mezi výpočty'!N31 -> 39.39172363
A25: Tahové síly lan [kN] | B25: ='Mezi výpočty'!B30 -> 3.56 | C25: ='Mezi výpočty'!C30 -> 3.963324028 | D25: ='Mezi výpočty'!D30 -> 3.799668243 | E25: ='Mezi výpočty'!E30 -> 3.639054111 | F25: ='Mezi výpočty'!F30 -> 3.56 | G25: ='Mezi výpočty'!G30 -> 3.481844227 | H25: ='Mezi výpočty'!H30 -> 3.328426308 | I25: ='Mezi výpočty'!I30 -> 3.179206406 | J25: ='Mezi výpočty'!J30 -> 3.034602116 | K25: ='Mezi výpočty'!K30 -> 2.895026279 | L25: ='Mezi výpočty'!L30 -> 2.632505239 | M25: ='Mezi výpočty'!M30 -> 8.662439423 | N25: ='Mezi výpočty'!N30 -> 7.011726807
A26: Průhyb vodiče [m] | B26: ='Mezi výpočty'!B41 -> 0.7263570888 | C26: ='Mezi výpočty'!C41 -> 0.651886623 | D26: ='Mezi výpočty'!D41 -> 0.6801980076 | E26: ='Mezi výpočty'!E41 -> 0.7104594966 | F26: ='Mezi výpočty'!F41 -> 0.7263570888 | G26: ='Mezi výpočty'!G41 -> 0.7427837952 | H26: ='Mezi výpočty'!H41 -> 0.7772729088 | I26: ='Mezi výpočty'!I41 -> 0.8140122395 | J26: ='Mezi výpočty'!J41 -> 0.8530631972 | K26: ='Mezi výpočty'!K41 -> 0.8944571387 | L26: ='Mezi výpočty'!L41 -> 0.9842083302 | M26: ='Mezi výpočty'!M41 -> 2.807382931 | N26: ='Mezi výpočty'!N41 -> 2.344674393

Sheet Mezi výpočty
A1: Vodič | P1: Výpočtový bod | Q1: Vzdálenost | R1: tg(h/a) (terén) | S1: Vodič | Z1: Lana, KZL nebo SDOK
B2: zadaná/počáteční | C2: min. tepl. | D2: -20 °C | E2: -10 °C | F2: -5 °C | G2: 0 °C | H2: +10 °C | I2: +20 °C | J2: +30 °C | K2: +40 °C | L2: +60 °C | M2: -5 °C + I | N2: -5 °C + W | R2: =ATAN(('Zadání vstupních údajů'!$N$5-'Zadání vstupních údajů'!$N$2)/Rozpeti) -> -0.08344216477 | S2: tg(h/a) | T2: min. teplota | V2: -5 °C + I | X2: +60 °C | Z2: tg(h/a) | AA2: min. teplota | AC2: -5 °C + I | AE2: +60 °C
A3: t [°C] | B3: ='Zadání vstupních údajů'!$H$7 -> -5 | C3: =INDEX('Data-námraza,vítr,součinitelé'!AG3:AK5,'Zadání vstupních údajů'!H3,5) -> -30 | D3: -20 | E3: -10 | F3: -5 | G3: 0 | H3: 10 | I3: 20 | J3: 30 | K3: 40 | L3: 60 | M3: -5 | N3: -5 | P3: 0 | Q3: =(Rozpeti/1000)*P3 -> 0 | R3: =$R$2*Q3 -> 0 | S3: =ATAN(prevyseni_vod/Rozpeti) -> -0.08344216477 | T3: =($Q3*(Rozpeti-$Q3))/(2*$C$11) -> 0 | U3: ='Zadání vstupních údajů'!$N$3 -> 10.5 | V3: =($Q3*(Rozpeti-$Q3))/(2*$M$11) -> 0 | W3: ='Zadání vstupních údajů'!$N$3 -> 10.5 | X3: =($Q3*(Rozpeti-$Q3))/(2*$L$11) -> 0 | Y3: ='Zadání vstupních údajů'!$N$3 -> 10.5 | Z3: =ATAN(prevyseni_ostatni/Rozpeti) -> -0.08344216477 | AA3: =($Q3*(Rozpeti-$Q3))/(2*$C$32) -> 0 | AB3: ='Zadání vstupních údajů'!$N$4 -> 8.5 | AC3: =($Q3*(Rozpeti-$Q3))/(2*$M$32) -> 0 | AD3: ='Zadání vstupních údajů'!$N$4 -> 8.5 | AE3: =($Q3*(Rozpeti-$Q3))/(2*$L$32) -> 0 | AF3: ='Zadání vstupních údajů'!$N$4 -> 8.5
A4: I50 [N/m] | B4: 0 | C4: 0 | D4: 0 | E4: 0 | F4: 0 | G4: 0 | H4: 0 | I4: 0 | J4: 0 | K4: 0 | L4: 0 | M4: ='Zadání vstupních údajů'!N17 -> 14.125888 | N4: 0 | P4: 1 | Q4: 0.11 | R4: =$R$2*Q4 -> -0.009178638125 | S4: =$S$3*Q4 -> -0.009178638125 | T4: 0.005249424292 | U4: =$U$3-T4+$S4 -> 10.48557194 | V4: 0.01010707298 | W4: =$W$3-V4+$S4 -> 10.48071429 | X4: =($Q4*(Rozpeti-$Q4))/(2*$L$11) -> 0.01125040874 | Y4: =$Y$3-X4+$S4 -> 10.47957095 | Z4: =$Z$3*Q4 -> -0.009178638125 | AA4: 0.002617098129 | AB4: =$AB$3-AA4+$Z4 -> 8.488204264 | AC4: 0.0111909366 | AD4: =$AD$3-AC4+$Z4 -> 8.479630425 | AE4: =($Q4*(Rozpeti-$Q4))/(2*$L$32) -> 0.003940128111 | AF4: =$AF$3-AE4+$Z4 -> 8.486881234
A5: qwc [N/m] | B5: 0 | C5: 0 | D5: 0 | E5: 0 | F5: 0 | G5: 0 | H5: 0 | I5: 0 | J5: 0 | K5: 0 | L5: 0 | M5: 0 | N5: ='Zadání vstupních údajů'!N33 -> 10.34011277 | P5: 2 | Q5: 0.22 | R5: -0.01835727625 | S5: =$S$3*Q5 -> -0.01835727625 | T5: 0.01048833923 | U5: =$U$3-T5+$S5 -> 10.47115438 | V5: 0.02019391158 | W5: =$W$3-V5+$S5 -> 10.46144881 | X5: =($Q5*(Rozpeti-$Q5))/(2*$L$11) -> 0.02247829413 | Y5: =$Y$3-X5+$S5 -> 10.45916443 | Z5: =$Z$3*Q5 -> -0.01835727625 | AA5: 0.005228956822 | AB5: =$AB$3-AA5+$Z5 -> 8.476413767 | AC5: 0.02235946891 | AD5: =$AD$3-AC5+$Z5 -> 8.459283255 | AE5: 0.007872368078 | AF5: =$AF$3-AE5+$Z5 -> 8.473770356
A6: D max [mm] | B6: ='Zadání vstupních údajů'!$C$6 -> 14.96 | C6: ='Zadání vstupních údajů'!$C$6 -> 14.96 | D6: ='Zadání vstupních údajů'!$C$6 -> 14.96 | E6: ='Zadání vstupních údajů'!$C$6 -> 14.96 | F6: ='Zadání vstupních údajů'!$C$6 -> 14.96 | G6: ='Zadání vstupních údajů'!$C$6 -> 14.96 | H6: ='Zadání vstupních údajů'!$C$6 -> 14.96 | I6: ='Zadání vstupních údajů'!$C$6 -> 14.96 | J6: ='Zadání vstupních údajů'!$C$6 -> 14.96 | K6: ='Zadání vstupních údajů'!$C$6 -> 14.96 | L6: ='Zadání vstupních údajů'!$C$6 -> 14.96 | M6: ='Zadání vstupních údajů'!$N$18 -> 62.38470309 | N6: ='Zadání vstupních údajů'!$C$6 -> 14.96 | P6: 3 | Q6: 0.33 | R6: -0.02753591437 | S6: -0.02753591437 | T6: 0.0157167448 | U6: 10.45674734 | V6: 0.0302605158 | W6: 10.44220357 | X6: 0.03368365619 | Y6: =$Y$3-X6+$S6 -> 10.43878043 | Z6: -0.02753591437 | AA6: 0.007835576079 | AB6: 8.46462851 | AC6: 0.03350559695 | AD6: 8.438958489 | AE6: 0.0117967199 | AF6: 8.460667366
A7: z0 [-] | B7: 1 | C7: 1 | D7: 1 | E7: 1 | F7: 1 | G7: 1 | H7: 1 | I7: 1 | J7: 1 | K7: 1 | L7: 1 | M7: 1 | N7: 1 | P7: 4 | Q7: 0.44 | R7: -0.0367145525 | S7: -0.0367145525 | T7: =($Q7*(Rozpeti-$Q7))/(2*$C$11) -> 0.02093464102 | U7: =$U$3-T7+$S7 -> 10.44235081 | V7: 0.04030688563 | W7: 10.42297856 | X7: 0.0448664949 | Y7: 10.41841895 | Z7: -0.0367145525 | AA7: 0.0104369559 | AB7: 8.452848492 | AC7: 0.04462932072 | AD7: 8.418656127 | AE7: 0.01571318358 | AF7: 8.447572264
A8: z1 [-] | B8: 1 | C8: 1 | D8: 1 | E8: 1 | F8: 1 | G8: 1 | H8: 1 | I8: 1 | J8: 1 | K8: 1 | L8: 1 | M8: ='Zadání vstupních údajů'!N19 -> 4.020422943 | N8: ='Zadání vstupních údajů'!N34 -> 2.426574313 | P8: 5 | Q8: 0.55 | R8: -0.04589319062 | S8: -0.04589319062 | T8: 0.02614202788 | U8: =$U$3-T8+$S8 -> 10.42796478 | V8: 0.05033302109 | W8: 10.40377379 | X8: 0.05602681027 | Y8: 10.39808 | Z8: -0.04589319062 | AA8: 0.01303309629 | AB8: 8.441073713 | AC8: 0.0557306402 | AD8: 8.398376169 | AE8: 0.01962175911 | AF8: 8.43448505
A9: F [kN] | B9: =(B10*'Zadání vstupních údajů'!$C$7)/1000 -> 3.9699 | C9: =(C10*'Zadání vstupních údajů'!$C$7)/1000 -> 5.384646338 | D9: =(D10*'Zadání vstupních údajů'!$C$7)/1000 -> 4.70878524 | E9: =(E10*'Zadání vstupních údajů'!$C$7)/1000 -> 4.186057661 | F9: =(F10*'Zadání vstupních údajů'!$C$7)/1000 -> 3.9699 | G9: =(G10*'Zadání vstupních údajů'!$C$7)/1000 -> 3.778241239 | H9: =(H10*'Zadání vstupních údajů'!$C$7)/1000 -> 3.45478605 | I9: =(I10*'Zadání vstupních údajů'!$C$7)/1000 -> 3.193344648 | J9: =(J10*'Zadání vstupních údajů'!$C$7)/1000 -> 2.978077957 | K9: =(K10*'Zadání vstupních údajů'!$C$7)/1000 -> 2.797797616 | L9: =(L10*'Zadání vstupních údajů'!$C$7)/1000 -> 2.51246812 | M9: =(M10*'Zadání vstupních údajů'!$C$7)/1000 -> 11.24385411 | N9: =(N10*'Zadání vstupních údajů'!$C$7)/1000 -> 7.782827233 | P9: 6 | Q9: 0.66 | R9: -0.05507182875 | S9: -0.05507182875 | T9: 0.03133890538 | U9: 10.41358927 | V9: 0.06033892217 | W9: 10.38458925 | X9: 0.06716460231 | Y9: 10.37776357 | Z9: -0.05507182875 | AA9: 0.01562399724 | AB9: 8.429304174 | AC9: 0.06680955541 | AD9: 8.378118616 | AE9: 0.0235224465 | AF9: 8.421405725
A10: σvyp [Mpa] | B10: ='Zadání vstupních údajů'!$H$9 -> 30 | C10: =Reseni_namahani($B$10,$B$3,C3,C7,C8,'Zadání vstupních údajů'!$C$10,'Zadání vstupních údajů'!$C$9,'Zadání vstupních údajů'!$C$11,'Zadání vstupních údajů'!$N$12) -> 40.69104767 | D10: =Reseni_namahani($B$10,$B$3,D3,D7,D8,'Zadání vstupních údajů'!$C$10,'Zadání vstupních údajů'!$C$9,'Zadání vstupních údajů'!$C$11,'Zadání vstupních údajů'!$N$12) -> 35.58365631 | E10: =Reseni_namahani($B$10,$B$3,E3,E7,E8,'Zadání vstupních údajů'!$C$10,'Zadání vstupních údajů'!$C$9,'Zadání vstupních údajů'!$C$11,'Zadání vstupních údajů'!$N$12) -> 31.63347435 | F10: =Reseni_namahani($B$10,$B$3,F3,F7,F8,'Zadání vstupních údajů'!$C$10,'Zadání vstupních údajů'!$C$9,'Zadání vstupních údajů'!$C$11,'Zadání vstupních údajů'!$N$12) -> 30 | G10: =Reseni_namahani($B$10,$B$3,G3,G7,G8,'Zadání vstupních údajů'!$C$10,'Zadání vstupních údajů'!$C$9,'Zadání vstupních údajů'!$C$11,'Zadání vstupních údajů'!$N$12) -> 28.55166054 | H10: =Reseni_namahani($B$10,$B$3,H3,H7,H8,'Zadání vstupních údajů'!$C$10,'Zadání vstupních údajů'!$C$9,'Zadání vstupních údajů'!$C$11,'Zadání vstupních údajů'!$N$12) -> 26.10735321 | I10: =Reseni_namahani($B$10,$B$3,I3,I7,I8,'Zadání vstupních údajů'!$C$10,'Zadání vstupních údajů'!$C$9,'Zadání vstupních údajů'!$C$11,'Zadání vstupních údajů'!$N$12) -> 24.13167572 | J10: =Reseni_namahani($B$10,$B$3,J3,J7,J8,'Zadání vstupních údajů'!$C$10,'Zadání vstupních údajů'!$C$9,'Zadání vstupních údajů'!$C$11,'Zadání vstupních údajů'!$N$12) -> 22.50493431 | K10: =Reseni_namahani($B$10,$B$3,K3,K7,K8,'Zadání vstupních údajů'!$C$10,'Zadání vstupních údajů'!$C$9,'Zadání vstupních údajů'!$C$11,'Zadání vstupních údajů'!$N$12) -> 21.14258003 | L10: =Reseni_namahani($B$10,$B$3,L3,L7,L8,'Zadání vstupních údajů'!$C$10,'Zadání vstupních údajů'!$C$9,'Zadání vstupních údajů'!$C$11,'Zadání vstupních údajů'!$N$12) -> 18.98638344 | M10: =Reseni_namahani($B$10,$B$3,M3,M7,M8,'Zadání vstupních údajů'!$C$10,'Zadání vstupních údajů'!$C$9,'Zadání vstupních údajů'!$C$11,'Zadání vstupních údajů'!$N$12) -> 84.96829224 | N10: =Reseni_namahani($B$10,$B$3,N3,N7,N8,'Zadání vstupních údajů'!$C$10,'Zadání vstupních údajů'!$C$9,'Zadání vstupních údajů'!$C$11,'Zadání vstupních údajů'!$N$12) -> 58.81377792 | P10: 7 | Q10: 0.77 | R10: -0.06425046687 | S10: -0.06425046687 | T10: =($Q10*(Rozpeti-$Q10))/(2*$C$11) -> 0.03652527353 | U10: 10.39922426 | V10: 0.07032458886 | W10: 10.36542494 | X10: 0.078279871 | Y10: 10.35746966 | Z10: -0.06425046687 | AA10: 0.01820965875 | AB10: 8.417539874 | AC10: 0.07786606634 | AD10: 8.357883467 | AE10: 0.02741524575 | AF10: 8.408334287
A11: C [m] | B11: =B10/('Zadání vstupních údajů'!$C$9*'Mezi výpočty'!B8) -> 848.8512044 | C11: =C10/('Zadání vstupních údajů'!$C$9*'Mezi výpočty'!C8) -> 1151.354827 | D11: =D10/('Zadání vstupních údajů'!$C$9*'Mezi výpočty'!D8) -> 1006.840984 | E11: =E10/('Zadání vstupních údajů'!$C$9*'Mezi výpočty'!E8) -> 895.0704267 | F11: =F10/('Zadání vstupních údajů'!$C$9*'Mezi výpočty'!F8) -> 848.8512044 | G11: =G10/('Zadání vstupních údajů'!$C$9*'Mezi výpočty'!G8) -> 807.8703812 | H11: =H10/('Zadání vstupních údajů'!$C$9*'Mezi výpočty'!H8) -> 738.7086072 | I11: =I10/('Zadání vstupních údajů'!$C$9*'Mezi výpočty'!I8) -> 682.8067333 | J11: =J10/('Zadání vstupních údajů'!$C$9*'Mezi výpočty'!J8) -> 636.7780198 | K11: =K10/('Zadání vstupních údajů'!$C$9*'Mezi výpočty'!K8) -> 598.2301508 | L11: =L10/('Zadání vstupních údajů'!$C$9*'Mezi výpočty'!L8) -> 537.2204816 | M11: =M10/('Zadání vstupních údajů'!$C$9*'Mezi výpočty'!M8) -> 597.9921202 | N11: =N10/('Zadání vstupních údajů'!$C$9*'Mezi výpočty'!N8) -> 685.7973394 | P11: 8 | Q11: 0.88 | R11: -0.073429105 | S11: -0.073429105 | T11: 0.04170113232 | U11: 10.38486976 | V11: 0.08029002118 | W11: 10.34628087 | X11: 0.08937261635 | Y11: 10.33719828 | Z11: -0.073429105 | AA11: 0.02079008083 | AB11: 8.405780814 | AC11: 0.08890017299 | AD11: 8.337670722 | AE11: 0.03130015685 | AF11: 8.395270738
A12: fmax(sourmerné) [m] | B12: =B11*(COSH('Zadání vstupních údajů'!$N$12/(2*'Mezi výpočty'!B11))-1) -> 1.782443393 | C12: =C11*(COSH('Zadání vstupních údajů'!$N$12/(2*'Mezi výpočty'!C11))-1) -> 1.313919573 | D12: =D11*(COSH('Zadání vstupních údajů'!$N$12/(2*'Mezi výpočty'!D11))-1) -> 1.502596909 | E12: =E11*(COSH('Zadání vstupních údajů'!$N$12/(2*'Mezi výpočty'!E11))-1) -> 1.690342933 | F12: =F11*(COSH('Zadání vstupních údajů'!$N$12/(2*'Mezi výpočty'!F11))-1) -> 1.782443393 | G12: =G11*(COSH('Zadání vstupních údajů'!$N$12/(2*'Mezi výpočty'!G11))-1) -> 1.872929517 | H12: =H11*(COSH('Zadání vstupních údajů'!$N$12/(2*'Mezi výpočty'!H11))-1) -> 2.048438069 | I12: =I11*(COSH('Zadání vstupních údajů'!$N$12/(2*'Mezi výpočty'!I11))-1) -> 2.216319636 | J12: =J11*(COSH('Zadání vstupních údajů'!$N$12/(2*'Mezi výpočty'!J11))-1) -> 2.37671603 | K12: =K11*(COSH('Zadání vstupních údajů'!$N$12/(2*'Mezi výpočty'!K11))-1) -> 2.530072538 | L12: =L11*(COSH('Zadání vstupních údajů'!$N$12/(2*'Mezi výpočty'!L11))-1) -> 2.817877593 | M12: =M11*(COSH('Zadání vstupních údajů'!$N$12/(2*'Mezi výpočty'!M11))-1) -> 2.531081052 | N12: =N11*(COSH('Zadání vstupních údajů'!$N$12/(2*'Mezi výpočty'!N11))-1) -> 2.206644389 | P12: 9 | Q12: 0.99 | R12: =$R$2*Q12 -> -0.08260774312 | S12: =$S$3*Q12 -> -0.08260774312 | T12: 0.04686648174 | U12: 10.37052578 | V12: 0.09023521912 | W12: 10.32715704 | X12: 0.1004428384 | Y12: 10.31694942 | Z12: -0.08260774312 | AA12: 0.02336526347 | AB12: 8.394026993 | AC12: 0.09991187537 | AD12: 8.317480382 | AE12: 0.0351771798 | AF12: 8.382215077
A13: xA [m] | B13: =Rozpeti-B14 -> 125.9451773 | C13: 151.2585172 | D13: 139.1666531 | E13: 129.8133465 | F13: 125.9451773 | G13: 122.5151743 | H13: 116.725857 | I13: 112.045764 | J13: 108.1916368 | K13: 104.9633782 | L13: 99.852773 | M13: =Rozpeti-M14 -> 104.9434422 | N13: =Rozpeti-N14 -> 112.2961562 | P13: 10 | Q13: 1.1 | R13: -0.09178638125 | S13: -0.09178638125 | T13: 0.05202132181 | U13: 10.3561923 | V13: 0.1001601827 | W13: 10.30805344 | X13: 0.111490537 | Y13: 10.29672308 | Z13: -0.09178638125 | AA13: 0.02593520668 | AB13: 8.382278412 | AC13: 0.1109011735 | AD13: 8.297312445 | AE13: 0.03904631461 | AF13: 8.369167304
A14: xB [m] | B14: =Rozpeti/2+B11*(prevyseni_vod/(2*B11*SINH(Rozpeti/(2*B11)))) -> -15.94517735 | C14: -41.25851725 | D14: -29.16665307 | E14: -19.81334655 | F14: =Rozpeti/2+F11*(prevyseni_vod/(2*F11*SINH(Rozpeti/(2*F11)))) -> -15.94517735 | G14: -12.51517434 | H14: -6.725856994 | I14: -2.045764049 | J14: 1.808363173 | K14: 5.036621813 | L14: =Rozpeti/2+L11*(prevyseni_vod/(2*L11*SINH(Rozpeti/(2*L11)))) -> 10.147227 | M14: =Rozpeti/2+M11*(prevyseni_vod/(2*M11*SINH(Rozpeti/(2*M11)))) -> 5.0565578 | N14: =Rozpeti/2+N11*(prevyseni_vod/(2*N11*SINH(Rozpeti/(2*N11)))) -> -2.296156155 | P14: 11 | Q14: 1.21 | R14: -0.1009650194 | S14: -0.1009650194 | T14: 0.05716565253 | U14: 10.34186933 | V14: 0.1100649118 | W14: 10.28897007 | X14: 0.1225157124 | Y14: 10.27651927 | Z14: -0.1009650194 | AA14: 0.02849991045 | AB14: 8.37053507 | AC14: 0.1218680673 | AD14: 8.277166913 | AE14: 0.04290756128 | AF14: 8.356127419
A15: yA [m] | B15: =B11*COSH(B13/B11) -> 858.2116838 | C15: =C11*COSH(C13/C11) -> 1161.304872 | D15: 1016.474189 | E15: 904.5004465 | F15: 858.2116838 | G15: 817.1780358 | H15: 747.9499362 | I15: 692.0205043 | J15: 645.9912904 | K15: 607.4620524 | L15: =L11*COSH(L13/L11) -> 546.5270089 | M15: =M11*COSH(M13/M11) -> 607.2241985 | N15: =N11*COSH(N13/N11) -> 695.0118898 | P15: 12 | Q15: 1.32 | R15: -0.1101436575 | S15: -0.1101436575 | T15: 0.06229947388 | U15: 10.32755687 | V15: 0.1199494066 | W15: 10.26990694 | X15: 0.1335183643 | Y15: 10.25633798 | Z15: -0.1101436575 | AA15: 0.03105937479 | AB15: 8.358796968 | AC15: 0.1328125568 | AD15: 8.257043786 | AE15: 0.04676091981 | AF15: 8.343095423
A16: yB [m] | B16: =B11*COSH(B14/B11) -> 849.0009693 | C16: =C11*COSH(C14/C11) -> 1152.094151 | D16: 1007.26347 | E16: 895.2897306 | F16: 849.0009693 | G16: 807.9673229 | H16: 738.7392265 | I16: 682.809798 | J16: 636.7805876 | K16: 598.2513531 | L16: =L11*COSH(L14/L11) -> 537.3163168 | M16: =M11*COSH(M14/M11) -> 598.0134992 | N16: =N11*COSH(N14/N11) -> 685.8011833 | P16: 13 | Q16: 1.43 | R16: -0.1193222956 | S16: -0.1193222956 | T16: 0.06742278588 | U16: 10.31325492 | V16: 0.1298136671 | W16: 10.25086404 | X16: 0.144498493 | Y16: 10.23617921 | Z16: -0.1193222956 | AA16: 0.03361359969 | AB16: 8.347064105 | AC16: 0.1437346421 | AD16: 8.236943062 | AE16: 0.05060639018 | AF16: 8.330071314
A17: xV [m] | B17: =prevyseni_vod/(Rozpeti*SINH(1/B11)) -> -70.99481158 | C17: -96.29511891 | D17: -84.20850481 | E17: -74.86042012 | F17: -70.99481158 | G17: -67.56732372 | H17: -61.78288283 | I17: -57.10745183 | J17: -53.25777613 | K17: -50.03377113 | L17: =prevyseni_vod/(Rozpeti*SINH(1/L11)) -> -44.93114161 | M17: =prevyseni_vod/(Rozpeti*SINH(1/M11)) -> -50.01386311 | N17: =prevyseni_vod/(Rozpeti*SINH(1/N11)) -> -57.35757533 | P17: 14 | Q17: 1.54 | R17: -0.1285009337 | S17: -0.1285009337 | T17: 0.07253558852 | U17: 10.29896348 | V17: 0.1396576931 | W17: 10.23184137 | X17: 0.1554560983 | Y17: 10.21604297 | Z17: -0.1285009337 | AA17: 0.03616258515 | AB17: 8.335336481 | AC17: 0.1546343231 | AD17: 8.216864743 | AE17: 0.05444397242 | AF17: 8.317055094
A18: h1 [m] | B18: =(B14-B17)*(prevyseni_vod/Rozpeti) -> -4.604151227 | C18: -4.60306123 | D18: -4.603500328 | E18: -4.603937062 | F18: -4.604151227 | G18: -4.604361584 | H18: -4.604769433 | I18: -4.605159341 | J18: -4.605531651 | K18: -4.60588741 | L18: =(L14-L17)*(prevyseni_vod/Rozpeti) -> -4.606554465 | M18: =(M14-M17)*(prevyseni_vod/Rozpeti) -> -4.605889749 | N18: =(N14-N17)*(prevyseni_vod/Rozpeti) -> -4.605136877 | P18: 15 | Q18: 1.65 | R18: -0.1376795719 | S18: -0.1376795719 | T18: 0.0776378818 | U18: 10.28468255 | V18: 0.1494814847 | W18: 10.21283894 | X18: 0.1663911803 | Y18: 10.19592925 | Z18: -0.1376795719 | AA18: 0.03870633118 | AB18: 8.323614097 | AC18: 0.1655115998 | AD18: 8.196808828 | AE18: 0.05827366651 | AF18: 8.304046762
A19: yv [m] | B19: =B11*COSH(B17/B11) -> 851.8218087 | C19: =C11*COSH(C17/C11) -> 1155.384062 | D19: 1010.364483 | E19: 898.202778 | F19: 851.8218087 | G19: 810.6975705 | H19: 741.2937607 | I19: 685.1962547 | J19: 639.0064608 | K19: 600.3236911 | L19: =L11*COSH(L17/L11) -> 539.1005147 | M19: =M11*COSH(M17/M11) -> 600.0848275 | N19: =N11*COSH(N17/N11) -> 688.1973266 | P19: 16 | Q19: 1.76 | R19: -0.14685821 | S19: -0.14685821 | T19: 0.08272966572 | U19: 10.27041212 | V19: 0.159285042 | W19: 10.19385675 | X19: 0.1773037389 | Y19: 10.17583805 | Z19: -0.14685821 | AA19: 0.04124483777 | AB19: 8.311896952 | AC19: 0.1763664722 | AD19: 8.176775318 | AE19: 0.06209547245 | AF19: 8.291046318
A20: fv [m] | B20: =B16-B19-B18 -> 1.783311812 | C20: =C16-C19-C18 -> 1.313150569 | D20: 1.502487491 | E20: 1.690889605 | F20: 1.783311812 | G20: 1.874113969 | H20: 2.050235274 | I20: 2.218702649 | J20: 2.379658408 | K20: 2.533549406 | L20: =L16-L19-L18 -> 2.822356588 | M20: =M16-M19-M18 -> 2.534561434 | N20: =N16-N19-N18 -> 2.20899365 | P20: 17 | Q20: 1.87 | R20: -0.1560368481 | S20: -0.1560368481 | T20: 0.08781094029 | U20: 10.25615221 | V20: 0.1690683649 | W20: 10.17489479 | X20: 0.1881937742 | Y20: 10.15576938 | Z20: -0.1560368481 | AA20: 0.04377810493 | AB20: 8.300185047 | AC20: 0.1871989404 | AD20: 8.156764211 | AE20: 0.06590939026 | AF20: 8.278053762
P21: 18 | Q21: 1.98 | R21: -0.1652154862 | S21: -0.1652154862 | T21: 0.09288170549 | U21: 10.24190281 | V21: 0.1788314534 | W21: 10.15595306 | X21: 0.1990612861 | Y21: 10.13572323 | Z21: -0.1652154862 | AA21: 0.04630613265 | AB21: 8.288478381 | AC21: 0.1980090043 | AD21: 8.136775509 | AE21: 0.06971541991 | AF21: 8.265069094
A22: Lana, KZL nebo SDOK | P22: 19 | Q22: 2.09 | R22: -0.1743941244 | S22: -0.1743941244 | T22: 0.09794196134 | U22: 10.22766391 | V22: 0.1885743076 | W22: 10.13703157 | X22: 0.2099062747 | Y22: 10.1156996 | Z22: -0.1743941244 | AA22: 0.04882892094 | AB22: 8.276776955 | AC22: 0.2087966639 | AD22: 8.116809212 | AE22: 0.07351356142 | AF22: 8.252092314
B23: zadaná/počáteční | C23: min. tepl. | D23: -20 °C | E23: -10 °C | F23: -5 °C | G23: 0 °C | H23: +10 °C | I23: +20 °C | J23: +30 °C | K23: +40 °C | L23: +60 °C | M23: -5 °C + I | N23: -5 °C + W | P23: 20 | Q23: 2.2 | R23: -0.1835727625 | S23: -0.1835727625 | T23: 0.1029917078 | U23: 10.21343553 | V23: 0.1982969273 | W23: 10.11813031 | X23: 0.22072874 | Y23: 10.0956985 | Z23: -0.1835727625 | AA23: 0.05134646979 | AB23: 8.265080768 | AC23: 0.2195619192 | AD23: 8.096865318 | AE23: 0.07730381479 | AF23: 8.239123423
A24: t [°C] | B24: ='Zadání vstupních údajů'!$H$7 -> -5 | C24: =INDEX('Data-námraza,vítr,součinitelé'!AG3:AK5,'Zadání vstupních údajů'!H3,5) -> -30 | D24: -20 | E24: -10 | F24: -5 | G24: 0 | H24: 10 | I24: 20 | J24: 30 | K24: 40 | L24: 60 | M24: -5 | N24: -5 | P24: 21 | Q24: 2.31 | R24: -0.1927514006 | S24: -0.1927514006 | T24: 0.108030945 | U24: 10.19921765 | V24: 0.2079993127 | W24: 10.09924929 | X24: 0.2315286819 | Y24: 10.07571992 | Z24: -0.1927514006 | AA24: 0.05385877921 | AB24: 8.25338982 | AC24: 0.2303047702 | AD24: 8.076943829 | AE24: 0.08108618002 | AF24: 8.226162419
A25: I50 [N/m] | B25: 0 | C25: 0 | D25: 0 | E25: 0 | F25: 0 | G25: 0 | H25: 0 | I25: 0 | J25: 0 | K25: 0 | L25: 0 | M25: ='Zadání vstupních údajů'!N21 -> 14.32315 | N25: 0 | P25: 22 | Q25: 2.42 | R25: -0.2019300387 | S25: -0.2019300387 | T25: 0.1130596727 | U25: 10.18501029 | V25: 0.2176814637 | W25: 10.0803885 | X25: 0.2423061005 | Y25: 10.05576386 | Z25: -0.2019300387 | AA25: 0.05636584918 | AB25: 8.241704112 | AC25: 0.241025217 | AD25: 8.057044744 | AE25: 0.0848606571 | AF25: 8.213209304
A26: qwc [N/m] | B26: 0 | C26: 0 | D26: 0 | E26: 0 | F26: 0 | G26: 0 | H26: 0 | I26: 0 | J26: 0 | K26: 0 | L26: 0 | M26: 0 | N26: ='Zadání vstupních údajů'!N39 -> 10.71335214 | P26: 23 | Q26: 2.53 | R26: -0.2111086769 | S26: -0.2111086769 | T26: 0.1180778912 | U26: 10.17081343 | V26: 0.2273433803 | W26: 10.06154794 | X26: 0.2530609957 | Y26: 10.03583033 | Z26: -0.2111086769 | AA26: 0.05886767973 | AB26: 8.230023643 | AC26: 0.2517232595 | AD26: 8.037168064 | AE26: 0.08862724603 | AF26: 8.200264077
A27: D max [mm] | B27: ='Zadání vstupních údajů'!$C$21 -> 15.5 | C27: ='Zadání vstupních údajů'!$C$21 -> 15.5 | D27: ='Zadání vstupních údajů'!$C$21 -> 15.5 | E27: ='Zadání vstupních údajů'!$C$21 -> 15.5 | F27: ='Zadání vstupních údajů'!$C$21 -> 15.5 | G27: ='Zadání vstupních údajů'!$C$21 -> 15.5 | H27: ='Zadání vstupních údajů'!$C$21 -> 15.5 | I27: ='Zadání vstupních údajů'!$C$21 -> 15.5 | J27: ='Zadání vstupních údajů'!$C$21 -> 15.5 | K27: ='Zadání vstupních údajů'!$C$21 -> 15.5 | L27: ='Zadání vstupních údajů'!$C$21 -> 15.5 | M27: ='Zadání vstupních údajů'!$N$22 -> 62.92473542 | N27: ='Zadání vstupních údajů'!$C$21 -> 15.5 | P27: 24 | Q27: 2.64 | R27: -0.220287315 | S27: -0.220287315 | T27: 0.1230856002 | U27: 10.15662708 | V27: 0.2369850625 | W27: 10.04272762 | X27: 0.2637933676 | Y27: 10.01591932 | Z27: -0.220287315 | AA27: 0.06136427084 | AB27: 8.218348414 | AC27: 0.2623988977 | AD27: 8.017313787 | AE27: 0.09238594682 | AF27: 8.187326738
A28: z0 [-] | B28: 1 | C28: 1 | D28: 1 | E28: 1 | F28: 1 | G28: 1 | H28: 1 | I28: 1 | J28: 1 | K28: 1 | L28: 1 | M28: 1 | N28: 1 | P28: 25 | Q28: 2.75 | R28: -0.2294659531 | S28: -0.2294659531 | T28: 0.1280827999 | U28: 10.14245125 | V28: 0.2466065104 | W28: 10.02392754 | X28: 0.2745032162 | Y28: 9.996030831 | Z28: -0.2294659531 | AA28: 0.06385562251 | AB28: 8.206678424 | AC28: 0.2730521316 | AD28: 7.997481915 | AE28: 0.09613675947 | AF28: 8.174397287
A29: z1 [-] | B29: 1 | C29: 1 | D29: 1 | E29: 1 | F29: 1 | G29: 1 | H29: 1 | I29: 1 | J29: 1 | K29: 1 | L29: 1 | M29: ='Zadání vstupních údajů'!N23 -> 9.346027586 | N29: ='Zadání vstupních údajů'!N40 -> 6.322203787 | P29: 26 | Q29: 2.86 | R29: -0.2386445912 | S29: -0.2386445912 | T29: 0.1330694903 | U29: 10.12828592 | V29: 0.2562077238 | W29: 10.00514768 | X29: 0.2851905414 | Y29: 9.976164867 | Z29: -0.2386445912 | AA29: 0.06634173474 | AB29: 8.195013674 | AC29: 0.2836829613 | AD29: 7.977672447 | AE29: 0.09987968397 | AF29: 8.161475725
A30: F [kN] | B30: =(B31*'Zadání vstupních údajů'!$C$22)/1000 -> 3.56 | C30: =(C31*'Zadání vstupních údajů'!$C$22)/1000 -> 3.963324028 | D30: =(D31*'Zadání vstupních údajů'!$C$22)/1000 -> 3.799668243 | E30: =(E31*'Zadání vstupních údajů'!$C$22)/1000 -> 3.639054111 | F30: =(F31*'Zadání vstupních údajů'!$C$22)/1000 -> 3.56 | G30: =(G31*'Zadání vstupních údajů'!$C$22)/1000 -> 3.481844227 | H30: =(H31*'Zadání vstupních údajů'!$C$22)/1000 -> 3.328426308 | I30: =(I31*'Zadání vstupních údajů'!$C$22)/1000 -> 3.179206406 | J30: =(J31*'Zadání vstupních údajů'!$C$22)/1000 -> 3.034602116 | K30: =(K31*'Zadání vstupních údajů'!$C$22)/1000 -> 2.895026279 | L30: =(L31*'Zadání vstupních údajů'!$C$22)/1000 -> 2.632505239 | M30: =(M31*'Zadání vstupních údajů'!$C$22)/1000 -> 8.662439423 | N30: =(N31*'Zadání vstupních údajů'!$C$22)/1000 -> 7.011726807 | P30: 27 | Q30: 2.97 | R30: -0.2478232294 | S30: -0.2478232294 | T30: 0.1380456713 | U30: 10.1141311 | V30: 0.2657887029 | W30: 9.986388068 | X30: 0.2958553433 | Y30: 9.956321427 | Z30: -0.2478232294 | AA30: 0.06882260754 | AB30: 8.183354163 | AC30: 0.2942913867 | AD30: 7.957885384 | AE30: 0.1036147203 | AF30: 8.14856205
A31: σvyp [Mpa] | B31: ='Zadání vstupních údajů'!$H$12 -> 20 | C31: =Reseni_namahani($B$31,$B$24,C24,C28,C29,'Zadání vstupních údajů'!$C$25,'Zadání vstupních údajů'!$C$24,'Zadání vstupních údajů'!$C$26,'Zadání vstupních údajů'!$N$12) -> 22.26586533 | D31: =Reseni_namahani($B$31,$B$24,D24,D28,D29,'Zadání vstupních údajů'!$C$25,'Zadání vstupních údajů'!$C$24,'Zadání vstupních údajů'!$C$26,'Zadání vstupních údajů'!$N$12) -> 21.34645081 | E31: =Reseni_namahani($B$31,$B$24,E24,E28,E29,'Zadání vstupních údajů'!$C$25,'Zadání vstupních údajů'!$C$24,'Zadání vstupních údajů'!$C$26,'Zadání vstupních údajů'!$N$12) -> 20.44412422 | F31: =Reseni_namahani($B$31,$B$24,F24,F28,F29,'Zadání vstupních údajů'!$C$25,'Zadání vstupních údajů'!$C$24,'Zadání vstupních údajů'!$C$26,'Zadání vstupních údajů'!$N$12) -> 20 | G31: =Reseni_namahani($B$31,$B$24,G24,G28,G29,'Zadání vstupních údajů'!$C$25,'Zadání vstupních údajů'!$C$24,'Zadání vstupních údajů'!$C$26,'Zadání vstupních údajů'!$N$12) -> 19.56092262 | H31: =Reseni_namahani($B$31,$B$24,H24,H28,H29,'Zadání vstupních údajů'!$C$25,'Zadání vstupních údajů'!$C$24,'Zadání vstupních údajů'!$C$26,'Zadání vstupních údajů'!$N$12) -> 18.6990242 | I31: =Reseni_namahani($B$31,$B$24,I24,I28,I29,'Zadání vstupních údajů'!$C$25,'Zadání vstupních údajů'!$C$24,'Zadání vstupních údajů'!$C$26,'Zadání vstupních údajů'!$N$12) -> 17.86071014 | J31: =Reseni_namahani($B$31,$B$24,J24,J28,J29,'Zadání vstupních údajů'!$C$25,'Zadání vstupních údajů'!$C$24,'Zadání vstupních údajů'!$C$26,'Zadání vstupních údajů'!$N$12) -> 17.04832649 | K31: =Reseni_namahani($B$31,$B$24,K24,K28,K29,'Zadání vstupních údajů'!$C$25,'Zadání vstupních údajů'!$C$24,'Zadání vstupních údajů'!$C$26,'Zadání vstupních údajů'!$N$12) -> 16.26419258 | L31: =Reseni_namahani($B$31,$B$24,L24,L28,L29,'Zadání vstupních údajů'!$C$25,'Zadání vstupních údajů'!$C$24,'Zadání vstupních údajů'!$C$26,'Zadání vstupních údajů'!$N$12) -> 14.78935528 | M31: =Reseni_namahani($B$31,$B$24,M24,M28,M29,'Zadání vstupních údajů'!$C$25,'Zadání vstupních údajů'!$C$24,'Zadání vstupních údajů'!$C$26,'Zadání vstupních údajů'!$N$12) -> 48.66539001 | N31: =Reseni_namahani($B$31,$B$24,N24,N28,N29,'Zadání vstupních údajů'!$C$25,'Zadání vstupních údajů'!$C$24,'Zadání vstupních údajů'!$C$26,'Zadání vstupních údajů'!$N$12) -> 39.39172363 | P31: 28 | Q31: 3.08 | R31: -0.2570018675 | S31: -0.2570018675 | T31: 0.1430113429 | U31: 10.09998679 | V31: 0.2753494476 | W31: 9.967648685 | X31: 0.3064976218 | Y31: 9.936500511 | Z31: -0.2570018675 | AA31: 0.07129824091 | AB31: 8.171699892 | AC31: 0.3048774078 | AD31: 7.938120725 | AE31: 0.1073418685 | AF31: 8.135656264
A32: C [m] | B32: =B31/('Zadání vstupních údajů'!$C$24*'Mezi výpočty'!B29) -> 2074.394125 | C32: =C31/('Zadání vstupních údajů'!$C$24*'Mezi výpočty'!C29) -> 2309.409011 | D32: =D31/('Zadání vstupních údajů'!$C$24*'Mezi výpočty'!D29) -> 2214.047607 | E32: =E31/('Zadání vstupních údajů'!$C$24*'Mezi výpočty'!E29) -> 2120.458559 | F32: =F31/('Zadání vstupních údajů'!$C$24*'Mezi výpočty'!F29) -> 2074.394125 | G32: =G31/('Zadání vstupních údajů'!$C$24*'Mezi výpočty'!G29) -> 2028.853148 | H32: =H31/('Zadání vstupních údajů'!$C$24*'Mezi výpočty'!H29) -> 1939.457297 | I32: =I31/('Zadání vstupních údajů'!$C$24*'Mezi výpočty'!I29) -> 1852.507609 | J32: =J31/('Zadání vstupních údajů'!$C$24*'Mezi výpočty'!J29) -> 1768.247416 | K32: =K31/('Zadání vstupních údajů'!$C$24*'Mezi výpočty'!K29) -> 1686.917277 | L32: =L31/('Zadání vstupních údajů'!$C$24*'Mezi výpočty'!L29) -> 1533.947585 | M32: =M31/('Zadání vstupních údajů'!$C$24*'Mezi výpočty'!M29) -> 540.0754395 | N32: =N31/('Zadání vstupních údajů'!$C$24*'Mezi výpočty'!N29) -> 646.2458568 | P32: 29 | Q32: 3.19 | R32: -0.2661805056 | S32: -0.2661805056 | T32: 0.1479665051 | U32: 10.08585299 | V32: 0.284889958 | W32: 9.948929536 | X32: 0.317117377 | Y32: 9.916702117 | Z32: -0.2661805056 | AA32: 0.07376863484 | AB32: 8.16005086 | AC32: 0.3154410246 | AD32: 7.91837847 | AE32: 0.1110611286 | AF32: 8.122758366
A33: fmax(sourmerné) [m] | B33: =B32*(COSH('Zadání vstupních údajů'!$N$12/(2*'Mezi výpočty'!B32))-1) -> 0.7291712741 | C33: =C32*(COSH('Zadání vstupních údajů'!$N$12/(2*'Mezi výpočty'!C32))-1) -> 0.6549604176 | D33: =D32*(COSH('Zadání vstupních údajů'!$N$12/(2*'Mezi výpočty'!D32))-1) -> 0.6831731064 | E33: =E32*(COSH('Zadání vstupních údajů'!$N$12/(2*'Mezi výpočty'!E32))-1) -> 0.7133291017 | F33: =F32*(COSH('Zadání vstupních údajů'!$N$12/(2*'Mezi výpočty'!F32))-1) -> 0.7291712741 | G33: =G32*(COSH('Zadání vstupních údajů'!$N$12/(2*'Mezi výpočty'!G32))-1) -> 0.7455407164 | H33: =H32*(COSH('Zadání vstupních údajů'!$N$12/(2*'Mezi výpočty'!H32))-1) -> 0.7799096005 | I33: =I32*(COSH('Zadání vstupních údajů'!$N$12/(2*'Mezi výpočty'!I32))-1) -> 0.8165208591 | J33: =J32*(COSH('Zadání vstupních údajů'!$N$12/(2*'Mezi výpočty'!J32))-1) -> 0.8554356888 | K33: =K32*(COSH('Zadání vstupních údajů'!$N$12/(2*'Mezi výpočty'!K32))-1) -> 0.896685338 | L33: =L32*(COSH('Zadání vstupních údajů'!$N$12/(2*'Mezi výpočty'!L32))-1) -> 0.9861236854 | M33: =M32*(COSH('Zadání vstupních údajů'!$N$12/(2*'Mezi výpočty'!M32))-1) -> 2.80295586 | N33: =N32*(COSH('Zadání vstupních údajů'!$N$12/(2*'Mezi výpočty'!N32))-1) -> 2.341853566 | P33: 30 | Q33: 3.3 | R33: -0.2753591437 | S33: -0.2753591437 | T33: 0.1529111581 | U33: 10.0717297 | V33: 0.2944102339 | W33: 9.930230622 | X33: 0.3277146088 | Y33: 9.896926247 | Z33: -0.2753591437 | AA33: 0.07623378933 | AB33: 8.148407067 | AC33: 0.3259822372 | AD33: 7.898658619 | AE33: 0.1147725005 | AF33: 8.109868356
A34: xA [m] | B34: =Rozpeti-B35 -> 228.4744558 | C34: 248.1323144 | D34: 240.1558471 | E34: 232.327559 | F34: 228.4744558 | G34: 224.6651179 | H34: 217.1874163 | I34: 209.9142404 | J34: 202.86594 | K34: 196.0626336 | L34: 183.2663131 | M34: =Rozpeti-M35 -> 100.0919647 | N34: =Rozpeti-N35 -> 108.9844599 | P34: 31 | Q34: 3.41 | R34: -0.2845377819 | S34: -0.2845377819 | T34: 0.1578453016 | U34: 10.05761692 | V34: 0.3039102755 | W34: 9.911551943 | X34: 0.3382893174 | Y34: 9.877172901 | Z34: -0.2845377819 | AA34: 0.07869370439 | AB34: 8.136768514 | AC34: 0.3365010454 | AD34: 7.878961173 | AE34: 0.1184759843 | AF34: 8.096986234
A35: xB [m] | B35: =Rozpeti/2+B32*(prevyseni_ostatni/(2*B32*SINH(Rozpeti/(2*B32)))) -> -118.4744558 | C35: -138.1323144 | D35: -130.1558471 | E35: -122.327559 | F35: -118.4744558 | G35: -114.6651179 | H35: -107.1874163 | I35: -99.91424045 | J35: -92.86593995 | K35: -86.06263359 | L35: =Rozpeti/2+L32*(prevyseni_ostatni/(2*L32*SINH(Rozpeti/(2*L32)))) -> -73.26631314 | M35: =Rozpeti/2+M32*(prevyseni_ostatni/(2*M32*SINH(Rozpeti/(2*M32)))) -> 9.908035301 | N35: =Rozpeti/2+N32*(prevyseni_ostatni/(2*N32*SINH(Rozpeti/(2*N32)))) -> 1.015540075 | P35: 32 | Q35: 3.52 | R35: -0.29371642 | S35: -0.29371642 | T35: 0.1627689358 | U35: 10.04351464 | V35: 0.3133900827 | W35: 9.892893497 | X35: 0.3488415025 | Y35: 9.857442077 | Z35: -0.29371642 | AA35: 0.08114838001 | AB35: 8.1251352 | AC35: 0.3469974494 | AD35: 7.859286131 | AE35: 0.12217158 | AF35: 8.084112
A36: yA [m] | B36: =B32*COSH(B34/B32) -> 2086.988975 | C36: =C32*COSH(C34/C32) -> 2322.752013 | D36: 2227.085131 | E36: 2133.198754 | F36: 2086.988975 | G36: 2041.305014 | H36: 1951.630725 | I36: 1864.413406 | J36: 1779.897298 | K36: 1698.323837 | L36: =L32*COSH(L34/L32) -> 1544.908361 | M36: =M32*COSH(M34/M32) -> 549.3770192 | N36: =N32*COSH(N34/N32) -> 655.4573583 | P36: 33 | Q36: 3.63 | R36: -0.3028950581 | S36: -0.3028950581 | T36: 0.1676820606 | U36: 10.02942288 | V36: 0.3228496555 | W36: 9.874255286 | X36: 0.3593711644 | Y36: 9.837733778 | Z36: -0.3028950581 | AA36: 0.0835978162 | AB36: 8.113507126 | AC36: 0.3574714491 | AD36: 7.839633493 | AE36: 0.1258592874 | AF36: 8.071245654
A37: yB [m] | B37: =B32*COSH(B35/B32) -> 2077.778248 | C37: =C32*COSH(C35/C32) -> 2313.541285 | D37: 2217.874404 | E37: 2123.988027 | F37: 2077.778248 | G37: 2032.094287 | H37: 1942.419999 | I37: 1855.202679 | J37: 1770.686572 | K37: 1689.113112 | L37: =L32*COSH(L35/L32) -> 1535.697636 | M37: =M32*COSH(M35/M32) -> 540.1663267 | N37: =N32*COSH(N35/N32) -> 646.2466547 | P37: 34 | Q37: 3.74 | R37: -0.3120736962 | S37: -0.3120736962 | T37: 0.1725846761 | U37: 10.01534163 | V37: 0.3322889939 | W37: 9.85563731 | X37: 0.3698783028 | Y37: 9.818048001 | Z37: -0.3120736962 | AA37: 0.08604201295 | AB37: 8.101884291 | AC37: 0.3679230446 | AD37: 7.820003259 | AE37: 0.1295391068 | AF37: 8.058387197
A38: xV [m] | B38: =prevyseni_ostatni/(Rozpeti*SINH(1/B32)) -> -173.4947746 | C38: -193.1505658 | D38: -185.1748844 | E38: -177.3474365 | F38: -173.4947746 | G38: -169.6858928 | H38: -162.2091486 | I38: -154.9369925 | J38: -147.889776 | K38: -141.0876185 | L38: =prevyseni_ostatni/(Rozpeti*SINH(1/L32)) -> -128.2937889 | M38: =prevyseni_ostatni/(Rozpeti*SINH(1/M32)) -> -45.16992004 | N38: =prevyseni_ostatni/(Rozpeti*SINH(1/N32)) -> -54.0496319 | P38: 35 | Q38: 3.85 | R38: -0.3212523344 | S38: -0.3212523344 | T38: 0.1774767823 | U38: 10.00127088 | V38: 0.341708098 | W38: 9.837039568 | X38: 0.380362918 | Y38: 9.798384748 | Z38: -0.3212523344 | AA38: 0.08848097026 | AB38: 8.090266695 | AC38: 0.3783522357 | AD38: 7.80039543 | AE38: 0.133211038 | AF38: 8.045536628
A39: h1 [m] | B39: =(B35-B38)*(prevyseni_ostatni/Rozpeti) -> -4.601699393 | C39: -4.60152648 | D39: -4.601592218 | E39: -4.601662482 | F39: -4.601699393 | G39: -4.601737533 | H39: -4.601817606 | I39: -4.601902901 | J39: -4.601993557 | K39: -4.602089648 | L39: =(L35-L38)*(prevyseni_ostatni/Rozpeti) -> -4.602297974 | M39: =(M35-M38)*(prevyseni_ostatni/Rozpeti) -> -4.606519901 | N39: =(N35-N38)*(prevyseni_ostatni/Rozpeti) -> -4.605450747 | P39: 36 | Q39: 3.96 | R39: -0.3304309725 | S39: -0.3304309725 | T39: 0.182358379 | U39: 9.987210648 | V39: 0.3511069676 | W39: 9.81846206 | X39: 0.3908250098 | Y39: 9.778744018 | Z39: -0.3304309725 | AA39: 0.09091468814 | AB39: 8.078654339 | AC39: 0.3887590226 | AD39: 7.780810005 | AE39: 0.136875081 | AF39: 8.032693946
A40: yv [m] | B40: =B32*COSH(B38/B32) -> 2081.653591 | C40: =C32*COSH(C38/C32) -> 2317.490925 | D40: 2221.795798 | E40: 2127.87923 | F40: 2081.653591 | G40: 2035.953241 | H40: 1946.244543 | I40: 1858.99057 | J40: 1774.435503 | K40: 1692.820744 | L40: =L32*COSH(L38/L32) -> 1539.315726 | M40: =M32*COSH(M38/M32) -> 541.9654637 | N40: =N32*COSH(N38/N32) -> 648.507431 | P40: 37 | Q40: 4.07 | R40: -0.3396096106 | S40: -0.3396096106 | T40: 0.1872294664 | U40: 9.973160923 | V40: 0.3604856029 | W40: 9.799904786 | X40: 0.4012645783 | Y40: 9.759125811 | Z40: -0.3396096106 | AA40: 0.09334316659 | AB40: 8.067047223 | AC40: 0.3991434052 | AD40: 7.761246984 | AE40: 0.140531236 | AF40: 8.019859153
A41: fv [m] | B41: =B37-B40-B39 -> 0.7263570888 | C41: 0.651886623 | D41: 0.6801980076 | E41: 0.7104594966 | F41: 0.7263570888 | G41: 0.7427837952 | H41: 0.7772729088 | I41: 0.8140122395 | J41: 0.8530631972 | K41: 0.8944571387 | L41: =L37-L40-L39 -> 0.9842083302 | M41: =M37-M40-M39 -> 2.807382931 | N41: =N37-N40-N39 -> 2.344674393 | P41: 38 | Q41: 4.18 | R41: -0.3487882487 | S41: -0.3487882487 | T41: 0.1920900445 | U41: 9.959121707 | V41: 0.3698440038 | W41: 9.781367747 | X41: 0.4116816234 | Y41: 9.739530128 | Z41: -0.3487882487 | AA41: 0.0957664056 | AB41: 8.055445346 | AC41: 0.4095053836 | AD41: 7.741706368 | AE41: 0.1441795027 | AF41: 8.007032249
P42: 39 | Q42: 4.29 | R42: -0.3579668869 | S42: -0.3579668869 | T42: 0.1969401132 | U42: 9.945093 | V42: 0.3791821703 | W42: 9.762850943 | X42: 0.4220761452 | Y42: 9.719956968 | Z42: -0.3579668869 | AA42: 0.09818440517 | AB42: 8.043848708 | AC42: 0.4198449576 | AD42: 7.722188156 | AE42: 0.1478198814 | AF42: 7.994213232
P43: 40 | Q43: 4.4 | R43: -0.367145525 | S43: -0.367145525 | T43: 0.2017796725 | U43: 9.931074803 | V43: 0.3885001025 | W43: 9.744354373 | X43: 0.4324481436 | Y43: 9.700406331 | Z43: -0.367145525 | AA43: 0.1005971653 | AB43: 8.03225731 | AC43: 0.4301621274 | AD43: 7.702692348 | AE43: 0.1514523718 | AF43: 7.981402103
P44: 41 | Q44: 4.51 | R44: -0.3763241631 | S44: -0.3763241631 | T44: 0.2066087225 | U44: 9.917067114 | V44: 0.3977978003 | W44: 9.725878037 | X44: 0.4427976187 | Y44: 9.680878218 | Z44: -0.3763241631 | AA44: 0.103004686 | AB44: 8.020671151 | AC44: 0.4404568929 | AD44: 7.683218944 | AE44: 0.1550769742 | AF44: 7.968598863
P45: 42 | Q45: 4.62 | R45: -0.3855028012 | S45: -0.3855028012 | T45: 0.2114272631 | U45: 9.903069936 | V45: 0.4070752636 | W45: 9.707421935 | X45: 0.4531245705 | Y45: 9.661372628 | Z45: -0.3855028012 | AA45: 0.1054069673 | AB45: 8.009090231 | AC45: 0.4507292541 | AD45: 7.663767945 | AE45: 0.1586936884 | AF45: 7.95580351
P46: 43 | Q46: 4.73 | R46: -0.3946814394 | S46: -0.3946814394 | T46: 0.2162352943 | U46: 9.889083266 | V46: 0.4163324926 | W46: 9.688986068 | X46: 0.4634289989 | Y46: 9.641889562 | Z46: -0.3946814394 | AA46: 0.1078040091 | AB46: 7.997514552 | AC46: 0.460979211 | AD46: 7.64433935 | AE46: 0.1623025144 | AF46: 7.943016046
P47: 44 | Q47: 4.84 | R47: -0.4038600775 | S47: -0.4038600775 | T47: 0.2210328162 | U47: 9.875107106 | V47: 0.4255694873 | W47: 9.670570435 | X47: 0.473710904 | Y47: 9.622429019 | Z47: -0.4038600775 | AA47: 0.1101958115 | AB47: 7.985944111 | AC47: 0.4712067637 | AD47: 7.624933159 | AE47: 0.1659034523 | AF47: 7.93023647
P48: 45 | Q48: 4.95 | R48: -0.4130387156 | S48: -0.4130387156 | T48: 0.2258198288 | U48: 9.861141456 | V48: 0.4347862475 | W48: 9.652175037 | X48: 0.4839702857 | Y48: 9.602990999 | Z48: -0.4130387156 | AA48: 0.1125823745 | AB48: 7.97437891 | AC48: 0.4814119121 | AD48: 7.605549372 | AE48: 0.1694965021 | AF48: 7.917464782
P49: 46 | Q49: 5.06 | R49: -0.4222173537 | S49: -0.4222173537 | T49: 0.230596332 | U49: 9.847186314 | V49: 0.4439827734 | W49: 9.633799873 | X49: 0.4942071441 | Y49: 9.583575502 | Z49: -0.4222173537 | AA49: 0.114963698 | AB49: 7.962818948 | AC49: 0.4915946562 | AD49: 7.58618799 | AE49: 0.1730816637 | AF49: 7.904700983
P50: 47 | Q50: 5.17 | R50: -0.4313959919 | S50: -0.4313959919 | T50: 0.2353623258 | U50: 9.833241682 | V50: 0.4531590649 | W50: 9.615444943 | X50: 0.5044214792 | Y50: 9.564182529 | Z50: -0.4313959919 | AA50: 0.1173397821 | AB50: 7.951264226 | AC50: 0.501754996 | AD50: 7.566849012 | AE50: 0.1766589372 | AF50: 7.891945071
P51: 48 | Q51: 5.28 | R51: -0.44057463 | S51: -0.44057463 | T51: 0.2401178103 | U51: 9.81930756 | V51: 0.462315122 | W51: 9.597110248 | X51: 0.5146132909 | Y51: 9.544812079 | Z51: -0.44057463 | AA51: 0.1197106267 | AB51: 7.939714743 | AC51: 0.5118929316 | AD51: 7.547532438 | AE51: 0.1802283225 | AF51: 7.879197048
P52: 49 | Q52: 5.39 | R52: -0.4497532681 | S52: -0.4497532681 | T52: 0.2448627854 | U52: 9.805383947 | V52: 0.4714509447 | W52: 9.578795787 | X52: 0.5247825793 | Y52: 9.525464153 | Z52: -0.4497532681 | AA52: 0.1220762319 | AB52: 7.9281705 | AC52: 0.5220084629 | AD52: 7.528238269 | AE52: 0.1837898197 | AF52: 7.866456912
P53: 50 | Q53: 5.5 | R53: -0.4589319062 | S53: -0.4589319062 | T53: 0.2495972511 | U53: 9.791470843 | V53: 0.480566533 | W53: 9.560501561 | X53: 0.5349293443 | Y53: 9.506138749 | Z53: -0.4589319062 | AA53: 0.1244365977 | AB53: 7.916631496 | AC53: 0.5321015899 | AD53: 7.508966504 | AE53: 0.1873434287 | AF53: 7.853724665
P54: 51 | Q54: 5.61 | R54: -0.4681105444 | S54: -0.4681105444 | T54: 0.2543212075 | U54: 9.777568248 | V54: 0.489661887 | W54: 9.542227569 | X54: 0.545053586 | Y54: 9.48683587 | Z54: -0.4681105444 | AA54: 0.1267917241 | AB54: 7.905097732 | AC54: 0.5421723126 | AD54: 7.489717143 | AE54: 0.1908891496 | AF54: 7.841000306
P55: 52 | Q55: 5.72 | R55: -0.4772891825 | S55: -0.4772891825 | T55: 0.2590346546 | U55: 9.763676163 | V55: 0.4987370066 | W55: 9.523973811 | X55: 0.5551553044 | Y55: 9.467555513 | Z55: -0.4772891825 | AA55: 0.129141611 | AB55: 7.893569207 | AC55: 0.552220631 | AD55: 7.470490186 | AE55: 0.1944269823 | AF55: 7.828283835
P56: 53 | Q56: 5.83 | R56: -0.4864678206 | S56: -0.4864678206 | T56: 0.2637375922 | U56: 9.749794587 | V56: 0.5077918918 | W56: 9.505740288 | X56: 0.5652344994 | Y56: 9.44829768 | Z56: -0.4864678206 | AA56: 0.1314862584 | AB56: 7.882045921 | AC56: 0.5622465452 | AD56: 7.451285634 | AE56: 0.197956927 | AF56: 7.815575252
P57: 54 | Q57: 5.94 | R57: -0.4956464587 | S57: -0.4956464587 | T57: 0.2684300206 | U57: 9.735923521 | V57: 0.5168265426 | W57: 9.487526999 | X57: 0.5752911711 | Y57: 9.42906237 | Z57: -0.4956464587 | AA57: 0.1338256665 | AB57: 7.870527875 | AC57: 0.5722500551 | AD57: 7.432103486 | AE57: 0.2014789834 | AF57: 7.802874558
P58: 55 | Q58: 6.05 | R58: -0.5048250969 | S58: -0.5048250969 | T58: 0.2731119395 | U58: 9.722062964 | V58: 0.525840959 | W58: 9.469333944 | X58: 0.5853253194 | Y58: 9.409849584 | Z58: -0.5048250969 | AA58: 0.1361598351 | AB58: 7.859015068 | AC58: 0.5822311607 | AD58: 7.412943742 | AE58: 0.2049931517 | AF58: 7.790181751
P59: 56 | Q59: 6.16 | R59: -0.514003735 | S59: -0.514003735 | T59: 0.2777833491 | U59: 9.708212916 | V59: 0.5348351411 | W59: 9.451161124 | X59: 0.5953369444 | Y59: 9.390659321 | Z59: -0.514003735 | AA59: 0.1384887642 | AB59: 7.847507501 | AC59: 0.592189862 | AD59: 7.393806403 | AE59: 0.2084994319 | AF59: 7.777496833
P60: 57 | Q60: 6.27 | R60: -0.5231823731 | S60: -0.5231823731 | T60: 0.2824442494 | U60: 9.694373378 | V60: 0.5438090888 | W60: 9.433008538 | X60: 0.605326046 | Y60: 9.371491581 | Z60: -0.5231823731 | AA60: 0.140812454 | AB60: 7.836005173 | AC60: 0.6021261591 | AD60: 7.374691468 | AE60: 0.2119978239 | AF60: 7.764819803
P61: 58 | Q61: 6.38 | R61: -0.5323610112 | S61: -0.5323610112 | T61: 0.2870946403 | U61: 9.680544348 | V61: 0.5527628021 | W61: 9.414876187 | X61: 0.6152926243 | Y61: 9.352346364 | Z61: -0.5323610112 | AA61: 0.1431309043 | AB61: 7.824508084 | AC61: 0.6120400519 | AD61: 7.355598937 | AE61: 0.2154883278 | AF61: 7.752150661
P62: 59 | Q62: 6.49 | R62: -0.5415396494 | S62: -0.5415396494 | T62: 0.2917345218 | U62: 9.666725829 | V62: 0.561696281 | W62: 9.39676407 | X62: 0.6252366793 | Y62: 9.333223671 | Z62: -0.5415396494 | AA62: 0.1454441151 | AB62: 7.813016236 | AC62: 0.6219315404 | AD62: 7.33652881 | AE62: 0.2189709435 | AF62: 7.739489407
P63: 60 | Q63: 6.6 | R63: -0.5507182875 | S63: -0.5507182875 | T63: 0.296363894 | U63: 9.652917819 | V63: 0.5706095255 | W63: 9.378672187 | X63: 0.6351582109 | Y63: 9.314123502 | Z63: -0.5507182875 | AA63: 0.1477520865 | AB63: 7.801529626 | AC63: 0.6318006246 | AD63: 7.317481088 | AE63: 0.2224456711 | AF63: 7.726836041
P64: 61 | Q64: 6.71 | R64: -0.5598969256 | S64: -0.5598969256 | T64: 0.3009827568 | U64: 9.639120318 | V64: 0.5795025357 | W64: 9.360600539 | X64: 0.6450572192 | Y64: 9.295045855 | Z64: -0.5598969256 | AA64: 0.1500548185 | AB64: 7.790048256 | AC64: 0.6416473045 | AD64: 7.29845577 | AE64: 0.2259125106 | AF64: 7.714190564
P65: 62 | Q65: 6.82 | R65: -0.5690755637 | S65: -0.5690755637 | T65: 0.3055911102 | U65: 9.625333326 | V65: 0.5883753115 | W65: 9.342549125 | X65: 0.6549337042 | Y65: 9.275990732 | Z65: -0.5690755637 | AA65: 0.1523523111 | AB65: 7.778572125 | AC65: 0.6514715802 | AD65: 7.279452856 | AE65: 0.2293714619 | AF65: 7.701552974
P66: 63 | Q66: 6.93 | R66: -0.5782542019 | S66: -0.5782542019 | T66: 0.3101889543 | U66: 9.611556844 | V66: 0.5972278529 | W66: 9.324517945 | X66: 0.6647876658 | Y66: 9.256958132 | Z66: -0.5782542019 | AA66: 0.1546445642 | AB66: 7.767101234 | AC66: 0.6612734516 | AD66: 7.260472347 | AE66: 0.2328225251 | AF66: 7.688923273
P67: 64 | Q67: =(Rozpeti/1000)*P67 -> 7.04 | R67: =$R$2*Q67 -> -0.58743284 | S67: -0.58743284 | T67: =($Q67*(Rozpeti-$Q67))/(2*$C$11) -> 0.3147762891 | U67: 9.597790871 | V67: =($Q67*(Rozpeti-$Q67))/(2*$M$11) -> 0.6060601599 | W67: 9.306507 | X67: =($Q67*(Rozpeti-$Q67))/(2*$L$11) -> 0.6746191041 | Y67: 9.237948056 | Z67: -0.58743284 | AA67: =($Q67*(Rozpeti-$Q67))/(2*$C$32) -> 0.1569315779 | AB67: 7.755635582 | AC67: =($Q67*(Rozpeti-$Q67))/(2*$M$32) -> 0.6710529187 | AD67: 7.241514241 | AE67: =($Q67*(Rozpeti-$Q67))/(2*$L$32) -> 0.2362657001 | AF67: 7.67630146
P68: 65 | Q68: 7.15 | R68: -0.5966114781 | S68: -0.5966114781 | T68: 0.3193531145 | U68: 9.584035407 | V68: 0.6148722325 | W68: 9.288516289 | X68: 0.684428019 | Y68: 9.218960503 | Z68: -0.5966114781 | AA68: 0.1592133521 | AB68: 7.74417517 | AC68: 0.6808099816 | AD68: 7.22257854 | AE68: 0.2397009869 | AF68: 7.663687535
P69: 66 | Q69: 7.26 | R69: -0.6057901162 | S69: =$S$3*Q69 -> -0.6057901162 | T69: 0.3239194305 | U69: =$U$3-T69+$S69 -> 9.570290453 | V69: 0.6236640708 | W69: =$W$3-V69+$S69 -> 9.270545813 | X69: 0.6942144106 | Y69: =$Y$3-X69+$S69 -> 9.199995473 | Z69: =$Z$3*Q69 -> -0.6057901162 | AA69: 0.1614898869 | AB69: =$AB$3-AA69+$Z69 -> 7.732719997 | AC69: 0.6905446401 | AD69: =$AD$3-AC69+$Z69 -> 7.203665244 | AE69: 0.2431283857 | AF69: =$AF$3-AE69+$Z69 -> 7.651081498
P70: 67 | Q70: 7.37 | R70: -0.6149687544 | S70: -0.6149687544 | T70: 0.3284752372 | U70: 9.556556008 | V70: 0.6324356747 | W70: 9.252595571 | X70: 0.7039782788 | Y70: 9.181052967 | Z70: -0.6149687544 | AA70: 0.1637611823 | AB70: 7.721270063 | AC70: 0.7002568944 | AD70: 7.184774351 | AE70: 0.2465478963 | AF70: 7.638483349
P71: 68 | Q71: 7.48 | R71: -0.6241473925 | S71: -0.6241473925 | T71: 0.3330205345 | U71: 9.542832073 | V71: 0.6411870441 | W71: 9.234665563 | X71: 0.7137196237 | Y71: 9.162132984 | Z71: -0.6241473925 | AA71: 0.1660272382 | AB71: 7.709825369 | AC71: 0.7099467444 | AD71: 7.165905863 | AE71: 0.2499595187 | AF71: 7.625893089
P72: 69 | Q72: 7.59 | R72: -0.6333260306 | S72: -0.6333260306 | T72: 0.3375553224 | U72: 9.529118647 | V72: 0.6499181793 | W72: 9.21675579 | X72: 0.7234384453 | Y72: 9.143235524 | Z72: -0.6333260306 | AA72: 0.1682880547 | AB72: 7.698385915 | AC72: 0.7196141901 | AD72: 7.147059779 | AE72: 0.253363253 | AF72: 7.613310716
P73: 70 | Q73: 7.7 | R73: -0.6425046687 | S73: -0.6425046687 | T73: 0.342079601 | U73: 9.51541573 | V73: 0.65862908 | W73: 9.198866251 | X73: 0.7331347435 | Y73: 9.124360588 | Z73: -0.6425046687 | AA73: 0.1705436318 | AB73: 7.686951699 | AC73: 0.7292592316 | AD73: 7.1282361 | AE73: 0.2567590991 | AF73: 7.600736232
P74: 71 | Q74: 7.81 | R74: -0.6516833069 | S74: -0.6516833069 | T74: 0.3465933703 | U74: 9.501723323 | V74: 0.6673197464 | W74: 9.180996947 | X74: 0.7428085184 | Y74: 9.105508175 | Z74: -0.6516833069 | AA74: 0.1727939694 | AB74: 7.675522724 | AC74: 0.7388818688 | AD74: 7.109434824 | AE74: 0.2601470571 | AF74: 7.588169636
P75: 72 | Q75: 7.92 | R75: -0.660861945 | S75: -0.660861945 | T75: 0.3510966301 | U75: 9.488041425 | V75: 0.6759901783 | W75: 9.163147877 | X75: 0.7524597699 | Y75: 9.086678285 | Z75: -0.660861945 | AA75: 0.1750390676 | AB75: 7.664098987 | AC75: 0.7484821017 | AD75: 7.090655953 | AE75: 0.263527127 | AF75: 7.575610928
P76: 73 | Q76: 8.03 | R76: -0.6700405831 | S76: -0.6700405831 | T76: 0.3555893807 | U76: 9.474370036 | V76: 0.6846403759 | W76: 9.145319041 | X76: 0.7620884981 | Y76: 9.067870919 | Z76: -0.6700405831 | AA76: 0.1772789264 | AB76: 7.65268049 | AC76: 0.7580599303 | AD76: 7.071899487 | AE76: 0.2668993087 | AF76: 7.563060108
P77: 74 | Q77: 8.14 | R77: -0.6792192212 | S77: -0.6792192212 | T77: 0.3600716218 | U77: 9.460709157 | V77: 0.6932703391 | W77: 9.12751044 | X77: 0.771694703 | Y77: 9.049086076 | Z77: -0.6792192212 | AA77: 0.1795135457 | AB77: 7.641267233 | AC77: 0.7676153546 | AD77: 7.053165424 | AE77: 0.2702636023 | AF77: 7.550517176
P78: 75 | Q78: 8.25 | R78: -0.6883978594 | S78: -0.6883978594 | T78: 0.3645433536 | U78: 9.447058787 | V78: 0.701880068 | W78: 9.109722073 | X78: 0.7812783845 | Y78: 9.030323756 | Z78: -0.6883978594 | AA78: 0.1817429256 | AB78: 7.629859215 | AC78: 0.7771483747 | AD78: 7.034453766 | AE78: 0.2736200077 | AF78: 7.537982133
P79: 76 | Q79: 8.36 | R79: -0.6975764975 | S79: -0.6975764975 | T79: 0.3690045761 | U79: 9.433418926 | V79: 0.7104695624 | W79: 9.09195394 | X79: 0.7908395427 | Y79: 9.01158396 | Z79: -0.6975764975 | AA79: 0.183967066 | AB79: 7.618456436 | AC79: 0.7866589905 | AD79: 7.015764512 | AE79: 0.276968525 | AF79: 7.525454978
P80: 77 | Q80: 8.47 | R80: -0.7067551356 | S80: -0.7067551356 | T80: 0.3734552892 | U80: 9.419789575 | V80: 0.7190388225 | W80: 9.074206042 | X80: 0.8003781775 | Y80: 8.992866687 | Z80: -0.7067551356 | AA80: 0.1861859671 | AB80: 7.607058897 | AC80: 0.796147202 | AD80: 6.997097662 | AE80: 0.2803091541 | AF80: 7.51293571
P81: 78 | Q81: 8.58 | R81: -0.7159337737 | S81: -0.7159337737 | T81: 0.3778954929 | U81: 9.406170733 | V81: 0.7275878482 | W81: 9.056478378 | X81: 0.809894289 | Y81: 8.974171937 | Z81: -0.7159337737 | AA81: 0.1883996286 | AB81: 7.595666598 | AC81: 0.8056130092 | AD81: 6.978453217 | AE81: 0.2836418951 | AF81: 7.500424331
P82: 79 | Q82: 8.69 | R82: -0.7251124119 | S82: -0.7251124119 | T82: 0.3823251873 | U82: 9.392562401 | V82: 0.7361166395 | W82: 9.038770949 | X82: 0.8193878771 | Y82: 8.955499711 | Z82: -0.7251124119 | AA82: 0.1906080508 | AB82: 7.584279537 | AC82: 0.8150564122 | AD82: 6.959831176 | AE82: 0.286966748 | AF82: 7.48792084
P83: 80 | Q83: 8.8 | R83: -0.73429105 | S83: -0.73429105 | T83: 0.3867443723 | U83: 9.378964578 | V83: 0.7446251964 | W83: 9.021083754 | X83: 0.8288589419 | Y83: 8.936850008 | Z83: -0.73429105 | AA83: 0.1928112335 | AB83: 7.572897717 | AC83: 0.8244774108 | AD83: 6.941231539 | AE83: 0.2902837127 | AF83: 7.475425237
P84: 81 | Q84: 8.91 | R84: -0.7434696881 | S84: -0.7434696881 | T84: 0.3911530479 | U84: 9.365377264 | V84: 0.753113519 | W84: 9.003416793 | X84: 0.8383074834 | Y84: 8.918222828 | Z84: -0.7434696881 | AA84: 0.1950091768 | AB84: 7.561521135 | AC84: 0.8338760052 | AD84: 6.922654307 | AE84: 0.2935927893 | AF84: 7.462937523
P85: 82 | Q85: 9.02 | R85: -0.7526483262 | S85: -0.7526483262 | T85: 0.3955512142 | U85: 9.35180046 | V85: 0.7615816072 | W85: 8.985770067 | X85: 0.8477335015 | Y85: 8.899618172 | Z85: -0.7526483262 | AA85: 0.1972018806 | AB85: 7.550149793 | AC85: 0.8432521953 | AD85: 6.904099478 | AE85: 0.2968939777 | AF85: 7.450457696
P86: 83 | Q86: 9.13 | R86: -0.7618269644 | S86: -0.7618269644 | T86: 0.3999388712 | U86: 9.338234164 | V86: 0.7700294609 | W86: 8.968143575 | X86: 0.8571369963 | Y86: 8.881036039 | Z86: -0.7618269644 | AA86: 0.199389345 | AB86: 7.538783691 | AC86: 0.8526059812 | AD86: 6.885567054 | AE86: 0.3001872779 | AF86: 7.437985758
P87: 84 | Q87: 9.24 | R87: -0.7710056025 | S87: -0.7710056025 | T87: 0.4043160188 | U87: 9.324678379 | V87: 0.7784570804 | W87: 8.950537317 | X87: 0.8665179678 | Y87: 8.86247643 | Z87: -0.7710056025 | AA87: 0.20157157 | AB87: 7.527422828 | AC87: 0.8619373628 | AD87: 6.867057035 | AE87: 0.3034726901 | AF87: 7.425521707
P88: 85 | Q88: 9.35 | R88: -0.7801842406 | S88: -0.7801842406 | T88: 0.408682657 | U88: 9.311133102 | V88: 0.7868644654 | W88: 8.932951294 | X88: 0.8758764159 | Y88: 8.843939343 | Z88: -0.7801842406 | AA88: 0.2037485555 | AB88: 7.516067204 | AC88: 0.87124634 | AD88: 6.848569419 | AE88: 0.3067502141 | AF88: 7.413065545
P89: 86 | Q89: 9.46 | R89: -0.7893628787 | S89: -0.7893628787 | T89: 0.4130387858 | U89: 9.297598335 | V89: 0.795251616 | W89: 8.915385505 | X89: 0.8852123407 | Y89: 8.825424781 | Z89: -0.7893628787 | AA89: 0.2059203016 | AB89: 7.50471682 | AC89: 0.8805329131 | AD89: 6.830104208 | AE89: 0.3100198499 | AF89: 7.400617271
P90: 87 | Q90: 9.57 | R90: -0.7985415169 | S90: -0.7985415169 | T90: 0.4173844054 | U90: 9.284074078 | V90: 0.8036185323 | W90: 8.897839951 | X90: 0.8945257421 | Y90: 8.806932741 | Z90: -0.7985415169 | AA90: 0.2080868083 | AB90: 7.493371675 | AC90: 0.8897970818 | AD90: 6.811661401 | AE90: 0.3132815976 | AF90: 7.388176886
P91: 88 | Q91: 9.68 | R91: -0.807720155 | S91: -0.807720155 | T91: 0.4217195155 | U91: 9.27056033 | V91: 0.8119652142 | W91: 8.880314631 | X91: 0.9038166202 | Y91: 8.788463225 | Z91: -0.807720155 | AA91: 0.2102480755 | AB91: 7.48203177 | AC91: 0.8990388462 | AD91: 6.793240999 | AE91: 0.3165354571 | AF91: 7.375744388
P92: 89 | Q92: 9.79 | R92: -0.8168987931 | S92: -0.8168987931 | T92: 0.4260441163 | U92: 9.257057091 | V92: 0.8202916617 | W92: 8.862809545 | X92: 0.9130849749 | Y92: 8.770016232 | Z92: -0.8168987931 | AA92: 0.2124041033 | AB92: 7.470697104 | AC92: 0.9082582064 | AD92: 6.774843 | AE92: 0.3197814286 | AF92: 7.363319778
P93: 90 | Q93: 9.9 | R93: -0.8260774312 | S93: -0.8260774312 | T93: 0.4303582077 | U93: 9.243564361 | V93: 0.8285978748 | W93: 8.845324694 | X93: 0.9223308063 | Y93: 8.751591762 | Z93: -0.8260774312 | AA93: 0.2145548916 | AB93: 7.459367677 | AC93: 0.9174551623 | AD93: 6.756467406 | AE93: 0.3230195118 | AF93: 7.350903057
P94: 91 | Q94: 10.01 | R94: -0.8352560694 | S94: -0.8352560694 | T94: 0.4346617898 | U94: 9.230082141 | V94: 0.8368838536 | W94: 8.827860077 | X94: 0.9315541144 | Y94: 8.733189816 | Z94: -0.8352560694 | AA94: 0.2167004405 | AB94: 7.44804349 | AC94: 0.9266297139 | AD94: 6.738114217 | AE94: 0.3262497069 | AF94: 7.338494224
P95: 92 | Q95: 10.12 | R95: -0.8444347075 | S95: -0.8444347075 | T95: 0.4389548625 | U95: 9.21661043 | V95: 0.845149598 | W95: 8.810415695 | X95: 0.9407548991 | Y95: 8.714810393 | Z95: -0.8444347075 | AA95: 0.21884075 | AB95: 7.436724542 | AC95: 0.9357818613 | AD95: 6.719783431 | AE95: 0.3294720139 | AF95: 7.326093279
P96: 93 | Q96: 10.23 | R96: -0.8536133456 | S96: -0.8536133456 | T96: 0.4432374259 | U96: 9.203149228 | V96: 0.8533951079 | W96: 8.792991546 | X96: 0.9499331605 | Y96: 8.696453494 | Z96: -0.8536133456 | AA96: 0.2209758201 | AB96: 7.425410834 | AC96: 0.9449116044 | AD96: 6.70147505 | AE96: 0.3326864327 | AF96: 7.313700222
P97: 94 | Q97: 10.34 | R97: -0.8627919837 | S97: -0.8627919837 | T97: 0.4475094799 | U97: 9.189698536 | V97: 0.8616203835 | W97: 8.775587633 | X97: 0.9590888985 | Y97: 8.678119118 | Z97: -0.8627919837 | AA97: 0.2231056507 | AB97: 7.414102366 | AC97: 0.9540189431 | AD97: 6.683189073 | AE97: 0.3358929634 | AF97: 7.301315053
P98: 95 | Q98: 10.45 | R98: -0.8719706219 | S98: -0.8719706219 | T98: 0.4517710245 | U98: 9.176258354 | V98: 0.8698254248 | W98: 8.758203953 | X98: 0.9682221132 | Y98: 8.659807265 | Z98: -0.8719706219 | AA98: 0.2252302418 | AB98: 7.402799136 | AC98: 0.9631038777 | AD98: 6.6649255 | AE98: 0.339091606 | AF98: 7.288937772
P99: 96 | Q99: 10.56 | R99: -0.88114926 | S99: -0.88114926 | T99: 0.4560220598 | U99: 9.16282868 | V99: 0.8780102316 | W99: 8.740840508 | X99: 0.9773328046 | Y99: 8.641517935 | Z99: -0.88114926 | AA99: 0.2273495936 | AB99: 7.391501146 | AC99: 0.9721664079 | AD99: 6.646684332 | AE99: 0.3422823604 | AF99: 7.27656838
P100: 97 | Q100: 10.67 | R100: -0.8903278981 | S100: -0.8903278981 | T100: 0.4602625858 | U100: 9.149409516 | V100: 0.8861748041 | W100: 8.723497298 | X100: 0.9864209726 | Y100: 8.623251129 | Z100: -0.8903278981 | AA100: 0.2294637059 | AB100: 7.380208396 | AC100: 0.9812065339 | AD100: 6.628465568 | AE100: 0.3454652266 | AF100: 7.264206875
P101: 98 | Q101: 10.78 | R101: -0.8995065362 | S101: -0.8995065362 | T101: 0.4644926023 | U101: 9.136000861 | V101: 0.8943191422 | W101: 8.706174322 | X101: 0.9954866173 | Y101: 8.605006846 | Z101: -0.8995065362 | AA101: 0.2315725788 | AB101: 7.368920885 | AC101: 0.9902242555 | AD101: 6.610269208 | AE101: 0.3486402047 | AF101: 7.251853259
P102: 99 | Q102: 10.89 | R102: -0.9086851744 | S102: -0.9086851744 | T102: 0.4687121095 | U102: 9.122602716 | V102: 0.9024432459 | W102: 8.68887158 | X102: 1.004529739 | Y102: 8.586785087 | Z102: -0.9086851744 | AA102: 0.2336762122 | AB102: 7.357638613 | AC102: 0.9992195729 | AD102: 6.592095253 | AE102: 0.3518072947 | AF102: 7.239507531
P103: 100 | Q103: 11 | R103: -0.9178638125 | S103: -0.9178638125 | T103: 0.4729211074 | U103: 9.10921508 | V103: 0.9105471152 | W103: 8.671589072 | X103: 1.013550337 | Y103: 8.568585851 | Z103: -0.9178638125 | AA103: 0.2357746062 | AB103: 7.346361581 | AC103: 1.008192486 | AD103: 6.573943701 | AE103: 0.3549664965 | AF103: 7.227169691
P104: 101 | Q104: 11.11 | R104: -0.9270424506 | S104: -0.9270424506 | T104: 0.4771195959 | U104: 9.095837953 | V104: 0.9186307501 | W104: 8.654326799 | X104: 1.022548411 | Y104: 8.550409138 | Z104: -0.9270424506 | AA104: 0.2378677607 | AB104: 7.335089789 | AC104: 1.017142995 | AD104: 6.555814554 | AE104: 0.3581178102 | AF104: 7.214839739
P105: 102 | Q105: 11.22 | R105: -0.9362210887 | S105: -0.9362210887 | T105: 0.481307575 | U105: 9.082471336 | V105: 0.9266941507 | W105: 8.637084761 | X105: 1.031523963 | Y105: 8.532254949 | Z105: -0.9362210887 | AA105: 0.2399556759 | AB105: 7.323823235 | AC105: 1.026071099 | AD105: 6.537707812 | AE105: 0.3612612357 | AF105: 7.202517676
P106: 103 | Q106: 11.33 | R106: -0.9453997269 | S106: -0.9453997269 | T106: 0.4854850448 | U106: 9.069115228 | V106: 0.9347373169 | W106: 8.619862956 | X106: 1.040476991 | Y106: 8.514123283 | Z106: -0.9453997269 | AA106: 0.2420383516 | AB106: 7.312561922 | AC106: 1.0349768 | AD106: 6.519623473 | AE106: 0.3643967731 | AF106: 7.1902035
P107: 104 | Q107: 11.44 | R107: -0.954578365 | S107: -0.954578365 | T107: 0.4896520052 | U107: 9.05576963 | V107: 0.9427602487 | W107: 8.602661386 | X107: 1.049407495 | Y107: 8.49601414 | Z107: -0.954578365 | AA107: 0.2441157878 | AB107: 7.301305847 | AC107: 1.043860096 | AD107: 6.501561539 | AE107: 0.3675244223 | AF107: 7.177897213
P108: 105 | Q108: 11.55 | R108: -0.9637570031 | S108: -0.9637570031 | T108: 0.4938084563 | U108: 9.042434541 | V108: 0.9507629461 | W108: 8.585480051 | X108: 1.058315476 | Y108: 8.47792752 | Z108: -0.9637570031 | AA108: 0.2461879846 | AB108: 7.290055012 | AC108: 1.052720988 | AD108: 6.483522009 | AE108: 0.3706441834 | AF108: 7.165598813
P109: 106 | Q109: 11.66 | R109: -0.9729356412 | S109: -0.9729356412 | T109: 0.497954398 | U109: 9.029109961 | V109: 0.9587454092 | W109: 8.56831895 | X109: 1.067200934 | Y109: 8.459863424 | Z109: -0.9729356412 | AA109: 0.248254942 | AB109: 7.278809417 | AC109: 1.061559475 | AD109: 6.465504884 | AE109: 0.3737560564 | AF109: 7.153308302
P110: 107 | Q110: 11.77 | R110: -0.9821142794 | S110: -0.9821142794 | T110: 0.5020898304 | U110: 9.01579589 | V110: 0.9667076378 | W110: 8.551178083 | X110: 1.076063869 | Y110: 8.441821852 | Z110: -0.9821142794 | AA110: 0.2503166599 | AB110: 7.267569061 | AC110: 1.070375558 | AD110: 6.447510162 | AE110: 0.3768600412 | AF110: 7.141025679
P111: 108 | Q111: 11.88 | R111: -0.9912929175 | S111: -0.9912929175 | T111: 0.5062147534 | U111: 9.002492329 | V111: 0.9746496321 | W111: 8.53405745 | X111: 1.08490428 | Y111: 8.423802802 | Z111: -0.9912929175 | AA111: 0.2523731385 | AB111: 7.256333944 | AC111: 1.079169237 | AD111: 6.429537845 | AE111: 0.3799561379 | AF111: 7.128750945
P112: 109 | Q112: 11.99 | R112: -1.000471556 | S112: -1.000471556 | T112: 0.510329167 | U112: 8.989199277 | V112: 0.982571392 | W112: 8.516957052 | X112: 1.093722168 | Y112: 8.405806276 | Z112: -1.000471556 | AA112: 0.2544243775 | AB112: 7.245104067 | AC112: 1.087940512 | AD112: 6.411587933 | AE112: 0.3830443464 | AF112: 7.116484098
P113: 110 | Q113: 12.1 | R113: -1.009650194 | S113: -1.009650194 | T113: 0.5144330713 | U113: 8.975916735 | V113: 0.9904729175 | W113: 8.499876889 | X113: 1.102517533 | Y113: 8.387832273 | Z113: -1.009650194 | AA113: 0.2564703772 | AB113: 7.233879429 | AC113: 1.096689382 | AD113: 6.393660424 | AE113: 0.3861246667 | AF113: 7.10422514
P114: 111 | Q114: 12.21 | R114: -1.018828832 | S114: -1.018828832 | T114: 0.5185264662 | U114: 8.962644702 | V114: 0.9983542087 | W114: 8.482816959 | X114: 1.111290374 | Y114: 8.369880794 | Z114: -1.018828832 | AA114: 0.2585111374 | AB114: 7.222660031 | AC114: 1.105415848 | AD114: 6.37575532 | AE114: 0.389197099 | AF114: 7.091974069
P115: 112 | Q115: 12.32 | R115: -1.02800747 | S115: -1.02800747 | T115: 0.5226093518 | U115: 8.949383178 | V115: 1.006215265 | W115: 8.465777265 | X115: 1.120040692 | Y115: 8.351951838 | Z115: -1.02800747 | AA115: 0.2605466581 | AB115: 7.211445872 | AC115: 1.11411991 | AD115: 6.35787262 | AE115: 0.3922616431 | AF115: 7.079730887
P116: 113 | Q116: 12.43 | R116: -1.037186108 | S116: -1.037186108 | T116: 0.526681728 | U116: 8.936132164 | V116: 1.014056088 | W116: 8.448757804 | X116: 1.128768487 | Y116: 8.334045405 | Z116: -1.037186108 | AA116: 0.2625769395 | AB116: 7.200236952 | AC116: 1.122801567 | AD116: 6.340012324 | AE116: 0.395318299 | AF116: 7.067495593
P117: 114 | Q117: 12.54 | R117: -1.046364746 | S117: -1.046364746 | T117: 0.5307435948 | U117: 8.922891659 | V117: 1.021876676 | W117: 8.431758578 | X117: 1.137473758 | Y117: 8.316161496 | Z117: -1.046364746 | AA117: 0.2646019814 | AB117: 7.189033272 | AC117: 1.131460821 | AD117: 6.322174433 | AE117: 0.3983670668 | AF117: 7.055268187
P118: 115 | Q118: 12.65 | R118: -1.055543384 | S118: -1.055543384 | T118: 0.5347949523 | U118: 8.909661663 | V118: 1.029677029 | W118: 8.414779586 | X118: 1.146156506 | Y118: 8.29830011 | Z118: -1.055543384 | AA118: 0.2666217838 | AB118: 7.177834832 | AC118: 1.14009767 | AD118: 6.304358946 | AE118: 0.4014079465 | AF118: 7.043048669
P119: 116 | Q119: 12.76 | R119: -1.064722022 | S119: -1.064722022 | T119: 0.5388358004 | U119: 8.896442177 | V119: 1.037457149 | W119: 8.397820829 | X119: 1.15481673 | Y119: 8.280461247 | Z119: -1.064722022 | AA119: 0.2686363468 | AB119: 7.166641631 | AC119: 1.148712114 | AD119: 6.286565863 | AE119: 0.404440938 | AF119: 7.03083704
P120: 117 | Q120: 12.87 | R120: -1.073900661 | S120: -1.073900661 | T120: 0.5428661392 | U120: 8.8832332 | V120: 1.045217034 | W120: 8.380882306 | X120: 1.163454431 | Y120: 8.262644908 | Z120: -1.073900661 | AA120: 0.2706456704 | AB120: 7.155453669 | AC120: 1.157304155 | AD120: 6.268795185 | AE120: 0.4074660413 | AF120: 7.018633298
P121: 118 | Q121: 12.98 | R121: -1.083079299 | S121: -1.083079299 | T121: 0.5468859686 | U121: 8.870034733 | V121: 1.052956684 | W121: 8.363964017 | X121: 1.172069609 | Y121: 8.244851092 | Z121: -1.083079299 | AA121: 0.2726497546 | AB121: 7.144270947 | AC121: 1.165873791 | AD121: 6.25104691 | AE121: 0.4104832566 | AF121: 7.006437445
P122: 119 | Q122: 13.09 | R122: -1.092257937 | S122: -1.092257937 | T122: 0.5508952887 | U122: 8.856846774 | V122: 1.0606761 | W122: 8.347065963 | X122: 1.180662264 | Y122: 8.227079799 | Z122: -1.092257937 | AA122: 0.2746485993 | AB122: 7.133093464 | AC122: 1.174421023 | AD122: 6.23332104 | AE122: 0.4134925836 | AF122: 6.99424948
P123: 120 | Q123: 13.2 | R123: -1.101436575 | S123: -1.101436575 | T123: 0.5548940994 | U123: 8.843669326 | V123: 1.068375282 | W123: 8.330188143 | X123: 1.189232395 | Y123: 8.20933103 | Z123: -1.101436575 | AA123: 0.2766422046 | AB123: 7.12192122 | AC123: 1.18294585 | AD123: 6.215617575 | AE123: 0.4164940226 | AF123: 6.982069402
P124: 121 | Q124: 13.31 | R124: -1.110615213 | S124: -1.110615213 | T124: 0.5588824007 | U124: 8.830502386 | V124: 1.076054229 | W124: 8.313330558 | X124: 1.197780003 | Y124: 8.191604784 | Z124: -1.110615213 | AA124: 0.2786305704 | AB124: 7.110754216 | AC124: 1.191448274 | AD124: 6.197936513 | AE124: 0.4194875733 | AF124: 6.969897214
P125: 122 | Q125: 13.42 | R125: -1.119793851 | S125: -1.119793851 | T125: 0.5628601927 | U125: 8.817345956 | V125: 1.083712942 | W125: 8.296493207 | X125: 1.206305087 | Y125: 8.173901061 | Z125: -1.119793851 | AA125: 0.2806136968 | AB125: 7.099592452 | AC125: 1.199928293 | AD125: 6.180277856 | AE125: 0.422473236 | AF125: 6.957732913
P126: 123 | Q126: 13.53 | R126: -1.128972489 | S126: -1.128972489 | T126: 0.5668274753 | U126: 8.804200035 | V126: 1.091351421 | W126: 8.27967609 | X126: 1.214807648 | Y126: 8.156219862 | Z126: -1.128972489 | AA126: 0.2825915838 | AB126: 7.088435927 | AC126: 1.208385907 | AD126: 6.162641603 | AE126: 0.4254510105 | AF126: 6.9455765
P127: 124 | Q127: 13.64 | R127: -1.138151127 | S127: -1.138151127 | T127: 0.5707842486 | U127: 8.791064624 | V127: 1.098969665 | W127: 8.262879208 | X127: 1.223287686 | Y127: 8.138561186 | Z127: -1.138151127 | AA127: 0.2845642314 | AB127: 7.077284641 | AC127: 1.216821118 | AD127: 6.145027755 | AE127: 0.4284208968 | AF127: 6.933427976
P128: 125 | Q128: 13.75 | R128: -1.147329766 | S128: -1.147329766 | T128: 0.5747305125 | U128: 8.777939722 | V128: 1.106567675 | W128: 8.24610256 | X128: 1.231745201 | Y128: 8.120925034 | Z128: -1.147329766 | AA128: 0.2865316395 | AB128: 7.066138595 | AC128: 1.225233924 | AD128: 6.12743631 | AE128: 0.4313828951 | AF128: 6.921287339
P129: 126 | Q129: 13.86 | R129: -1.156508404 | S129: -1.156508404 | T129: 0.578666267 | U129: 8.764825329 | V129: 1.11414545 | W129: 8.229346146 | X129: 1.240180192 | Y129: 8.103311404 | Z129: -1.156508404 | AA129: 0.2884938081 | AB129: 7.054997788 | AC129: 1.233624326 | AD129: 6.10986727 | AE129: 0.4343370051 | AF129: 6.909154591
P130: 127 | Q130: 13.97 | R130: -1.165687042 | S130: -1.165687042 | T130: 0.5825915122 | U130: 8.751721446 | V130: 1.121702991 | W130: 8.212609967 | X130: 1.24859266 | Y130: 8.085720298 | Z130: -1.165687042 | AA130: 0.2904507374 | AB130: 7.043862221 | AC130: 1.241992324 | AD130: 6.092320635 | AE130: 0.437283227 | AF130: 6.897029731
P131: 128 | Q131: =(Rozpeti/1000)*P131 -> 14.08 | R131: =$R$2*Q131 -> -1.17486568 | S131: -1.17486568 | T131: =($Q131*(Rozpeti-$Q131))/(2*$C$11) -> 0.586506248 | U131: 8.738628072 | V131: =($Q131*(Rozpeti-$Q131))/(2*$M$11) -> 1.129240298 | W131: 8.195894022 | X131: =($Q131*(Rozpeti-$Q131))/(2*$L$11) -> 1.256982604 | Y131: 8.068151716 | Z131: -1.17486568 | AA131: =($Q131*(Rozpeti-$Q131))/(2*$C$32) -> 0.2924024272 | AB131: 7.032731893 | AC131: =($Q131*(Rozpeti-$Q131))/(2*$M$32) -> 1.250337917 | AD131: 6.074796403 | AE131: =($Q131*(Rozpeti-$Q131))/(2*$L$32) -> 0.4402215608 | AF131: 6.884912759
P132: 129 | Q132: 14.19 | R132: -1.184044318 | S132: -1.184044318 | T132: 0.5904104745 | U132: 8.725545207 | V132: 1.13675737 | W132: 8.179198312 | X132: 1.265350025 | Y132: 8.050605657 | Z132: -1.184044318 | AA132: 0.2943488775 | AB132: 7.021606804 | AC132: 1.258661106 | AD132: 6.057294576 | AE132: 0.4431520064 | AF132: 6.872803675
P133: 130 | Q133: 14.3 | R133: -1.193222956 | S133: =$S$3*Q133 -> -1.193222956 | T133: 0.5943041916 | U133: =$U$3-T133+$S133 -> 8.712472852 | V133: 1.144254208 | W133: =$W$3-V133+$S133 -> 8.162522836 | X133: 1.273694923 | Y133: =$Y$3-X133+$S133 -> 8.033082121 | Z133: =$Z$3*Q133 -> -1.193222956 | AA133: 0.2962900884 | AB133: =$AB$3-AA133+$Z133 -> 7.010486955 | AC133: 1.266961891 | AD133: =$AD$3-AC133+$Z133 -> 6.039815153 | AE133: 0.4460745639 | AF133: =$AF$3-AE133+$Z133 -> 6.86070248
P134: 131 | Q134: 14.41 | R134: -1.202401594 | S134: -1.202401594 | T134: 0.5981873994 | U134: 8.699411006 | V134: 1.151730812 | W134: 8.145867594 | X134: 1.282017297 | Y134: 8.015581108 | Z134: -1.202401594 | AA134: 0.2982260599 | AB134: 6.999372346 | AC134: 1.275240271 | AD134: 6.022358134 | AE134: 0.4489892333 | AF134: 6.848609172
P135: 132 | Q135: 14.52 | R135: -1.211580232 | S135: -1.211580232 | T135: 0.6020600978 | U135: 8.68635967 | V135: 1.159187181 | W135: 8.129232587 | X135: 1.290317149 | Y135: 7.998102619 | Z135: -1.211580232 | AA135: 0.300156792 | AB135: 6.988262976 | AC135: 1.283496248 | AD135: 6.00492352 | AE135: 0.4518960145 | AF135: 6.836523753
P136: 133 | Q136: 14.63 | R136: -1.220758871 | S136: -1.220758871 | T136: 0.6059222868 | U136: 8.673318843 | V136: 1.166623316 | W136: 8.112617814 | X136: 1.298594476 | Y136: 7.980646653 | Z136: -1.220758871 | AA136: 0.3020822846 | AB136: 6.977158845 | AC136: 1.29172982 | AD136: 5.98751131 | AE136: 0.4547949075 | AF136: 6.824446222
P137: 134 | Q137: 14.74 | R137: -1.229937509 | S137: -1.229937509 | T137: 0.6097739665 | U137: 8.660288525 | V137: 1.174039216 | W137: 8.096023275 | X137: 1.306849281 | Y137: 7.963213211 | Z137: -1.229937509 | AA137: 0.3040025378 | AB137: 6.966059953 | AC137: 1.299940987 | AD137: 5.970121504 | AE137: 0.4576859124 | AF137: 6.812376579
P138: 135 | Q138: 14.85 | R138: -1.239116147 | S138: -1.239116147 | T138: 0.6136151369 | U138: 8.647268716 | V138: 1.181434882 | W138: 8.079448971 | X138: 1.315081562 | Y138: 7.945802291 | Z138: -1.239116147 | AA138: 0.3059175515 | AB138: 6.954966302 | AC138: 1.308129751 | AD138: 5.952754102 | AE138: 0.4605690292 | AF138: 6.800314824
P139: 136 | Q139: 14.96 | R139: -1.248294785 | S139: -1.248294785 | T139: 0.6174457978 | U139: 8.634259417 | V139: 1.188810314 | W139: 8.062894901 | X139: 1.323291319 | Y139: 7.928413896 | Z139: -1.248294785 | AA139: 0.3078273258 | AB139: 6.943877889 | AC139: 1.31629611 | AD139: 5.935409105 | AE139: 0.4634442578 | AF139: 6.788260957
P140: 137 | Q140: 15.07 | R140: -1.257473423 | S140: -1.257473423 | T140: 0.6212659494 | U140: 8.621260627 | V140: 1.196165511 | W140: 8.046361066 | X140: 1.331478554 | Y140: 7.911048023 | Z140: -1.257473423 | AA140: 0.3097318607 | AB140: 6.932794716 | AC140: 1.324440065 | AD140: 5.918086512 | AE140: 0.4663115983 | AF140: 6.776214979
P141: 138 | Q141: 15.18 | R141: -1.266652061 | S141: -1.266652061 | T141: 0.6250755917 | U141: 8.608272347 | V141: 1.203500474 | W141: 8.029847465 | X141: 1.339643265 | Y141: 7.893704674 | Z141: -1.266652061 | AA141: 0.3116311561 | AB141: 6.921716783 | AC141: 1.332561615 | AD141: 5.900786324 | AE141: 0.4691710506 | AF141: 6.764176888
P142: 139 | Q142: 15.29 | R142: -1.275830699 | S142: -1.275830699 | T142: 0.6288747246 | U142: 8.595294576 | V142: 1.210815202 | W142: 8.013354098 | X142: 1.347785453 | Y142: 7.876383848 | Z142: -1.275830699 | AA142: 0.3135252121 | AB142: 6.910644088 | AC142: 1.340660762 | AD142: 5.883508539 | AE142: 0.4720226148 | AF142: 6.752146686
P143: 140 | Q143: 15.4 | R143: -1.285009337 | S143: -1.285009337 | T143: 0.6326633481 | U143: 8.582327314 | V143: 1.218109696 | W143: 7.996880966 | X143: 1.355905117 | Y143: 7.859085546 | Z143: -1.285009337 | AA143: 0.3154140287 | AB143: 6.899576634 | AC143: 1.348737504 | AD143: 5.866253159 | AE143: 0.4748662909 | AF143: 6.740124372
P144: 141 | Q144: 15.51 | R144: -1.294187976 | S144: -1.294187976 | T144: 0.6364414623 | U144: 8.569370562 | V144: 1.225383956 | W144: 7.980428068 | X144: 1.364002258 | Y144: 7.841809766 | Z144: -1.294187976 | AA144: 0.3172976058 | AB144: 6.888514419 | AC144: 1.356791841 | AD144: 5.849020183 | AE144: 0.4777020788 | AF144: 6.728109946
P145: 142 | Q145: 15.62 | R145: -1.303366614 | S145: -1.303366614 | T145: 0.6402090671 | U145: 8.556424319 | V145: 1.232637981 | W145: 7.963995405 | X145: 1.372076876 | Y145: 7.824556511 | Z145: -1.303366614 | AA145: 0.3191759435 | AB145: 6.877457443 | AC145: 1.364823775 | AD145: 5.831809611 | AE145: 0.4805299785 | AF145: 6.716103408
P146: 143 | Q146: 15.73 | R146: -1.312545252 | S146: -1.312545252 | T146: 0.6439661626 | U146: 8.543488586 | V146: 1.239871772 | W146: 7.947582976 | X146: 1.38012897 | Y146: 7.807325778 | Z146: -1.312545252 | AA146: 0.3210490418 | AB146: 6.866405706 | AC146: 1.372833304 | AD146: 5.814621444 | AE146: 0.4833499901 | AF146: 6.704104758
P147: 144 | Q147: 15.84 | R147: -1.32172389 | S147: -1.32172389 | T147: 0.6477127487 | U147: 8.530563361 | V147: 1.247085329 | W147: 7.931190781 | X147: 1.388158541 | Y147: 7.790117569 | Z147: -1.32172389 | AA147: 0.3229169006 | AB147: 6.855359209 | AC147: 1.380820429 | AD147: 5.797455681 | AE147: 0.4861621136 | AF147: 6.692113996
P148: 145 | Q148: 15.95 | R148: -1.330902528 | S148: -1.330902528 | T148: 0.6514488254 | U148: 8.517648646 | V148: 1.254278651 | W148: 7.914818821 | X148: 1.396165589 | Y148: 7.772931883 | Z148: -1.330902528 | AA148: 0.32477952 | AB148: 6.844317952 | AC148: 1.38878515 | AD148: 5.780312322 | AE148: 0.4889663489 | AF148: 6.680131123
P149: 146 | Q149: 16.06 | R149: -1.340081166 | S149: -1.340081166 | T149: 0.6551743928 | U149: 8.504744441 | V149: 1.261451739 | W149: 7.898467095 | X149: 1.404150113 | Y149: 7.755768721 | Z149: -1.340081166 | AA149: 0.3266369 | AB149: 6.833281934 | AC149: 1.396727466 | AD149: 5.763191368 | AE149: 0.4917626961 | AF149: 6.668156138
P150: 147 | Q150: 16.17 | R150: -1.349259804 | S150: -1.349259804 | T150: 0.6588894509 | U150: 8.491850745 | V150: 1.268604592 | W150: 7.882135603 | X150: 1.412112114 | Y150: 7.738628082 | Z150: -1.349259804 | AA150: 0.3284890405 | AB150: 6.822251155 | AC150: 1.404647378 | AD150: 5.746092818 | AE150: 0.4945511551 | AF150: 6.656189041
P151: 148 | Q151: 16.28 | R151: -1.358438442 | S151: -1.358438442 | T151: 0.6625939995 | U151: 8.478967558 | V151: 1.275737212 | W151: 7.865824346 | X151: 1.420051592 | Y151: 7.721509966 | Z151: -1.358438442 | AA151: 0.3303359416 | AB151: 6.811225616 | AC151: 1.412544886 | AD151: 5.729016672 | AE151: 0.497331726 | AF151: 6.644229831
P152: 149 | Q152: 16.39 | R152: -1.367617081 | S152: -1.367617081 | T152: 0.6662880389 | U152: 8.466094881 | V152: 1.282849596 | W152: 7.849533323 | X152: 1.427968546 | Y152: 7.704414373 | Z152: -1.367617081 | AA152: 0.3321776032 | AB152: 6.800205316 | AC152: 1.420419989 | AD152: 5.71196293 | AE152: 0.5001044088 | AF152: 6.632278511
P153: 150 | Q153: 16.5 | R153: -1.376795719 | S153: -1.376795719 | T153: 0.6699715688 | U153: 8.453232712 | V153: 1.289941747 | W153: 7.833262535 | X153: 1.435862977 | Y153: 7.687341304 | Z153: -1.376795719 | AA153: 0.3340140254 | AB153: 6.789190256 | AC153: 1.428272689 | AD153: 5.694931593 | AE153: 0.5028692034 | AF153: 6.620335078
P154: 151 | Q154: 16.61 | R154: -1.385974357 | S154: -1.385974357 | T154: 0.6736445894 | U154: 8.440381054 | V154: 1.297013662 | W154: 7.817011981 | X154: 1.443734884 | Y154: 7.670290759 | Z154: -1.385974357 | AA154: 0.3358452082 | AB154: 6.778180435 | AC154: 1.436102984 | AD154: 5.67792266 | AE154: 0.5056261098 | AF154: 6.608399533
P155: 152 | Q155: 16.72 | R155: -1.395152995 | S155: -1.395152995 | T155: 0.6773071007 | U155: 8.427539904 | V155: 1.304065344 | W155: 7.800781661 | X155: 1.451584269 | Y155: 7.653262736 | Z155: -1.395152995 | AA155: 0.3376711515 | AB155: 6.767175853 | AC155: 1.443910874 | AD155: 5.660936131 | AE155: 0.5083751281 | AF155: 6.596471877
P156: 153 | Q156: 16.83 | R156: -1.404331633 | S156: -1.404331633 | T156: 0.6809591026 | U156: 8.414709264 | V156: 1.311096791 | W156: 7.784571576 | X156: 1.45941113 | Y156: 7.636257237 | Z156: -1.404331633 | AA156: 0.3394918554 | AB156: 6.756176511 | AC156: 1.451696361 | AD156: 5.643972006 | AE156: 0.5111162583 | AF156: 6.584552109
P157: 154 | Q157: 16.94 | R157: -1.413510271 | S157: -1.413510271 | T157: 0.6846005951 | U157: 8.401889134 | V157: 1.318108004 | W157: 7.768381725 | X157: 1.467215467 | Y157: 7.619274261 | Z157: -1.413510271 | AA157: 0.3413073199 | AB157: 6.745182409 | AC157: 1.459459443 | AD157: 5.627030286 | AE157: 0.5138495003 | AF157: 6.572640228
P158: 155 | Q158: 17.05 | R158: -1.422688909 | S158: -1.422688909 | T158: 0.6882315782 | U158: 8.389079512 | V158: 1.325098982 | W158: 7.752212108 | X158: 1.474997282 | Y158: 7.602313809 | Z158: -1.422688909 | AA158: 0.3431175449 | AB158: 6.734193546 | AC158: 1.467200121 | AD158: 5.61011097 | AE158: 0.5165748542 | AF158: 6.560736236
P159: 156 | Q159: 17.16 | R159: -1.431867547 | S159: -1.431867547 | T159: 0.6918520521 | U159: 8.3762804 | V159: 1.332069726 | W159: 7.736062726 | X159: 1.482756572 | Y159: 7.58537588 | Z159: -1.431867547 | AA159: 0.3449225305 | AB159: 6.723209922 | AC159: 1.474918394 | AD159: 5.593214058 | AE159: 0.5192923199 | AF159: 6.548840133
P160: 157 | Q160: 17.27 | R160: -1.441046186 | S160: -1.441046186 | T160: 0.6954620165 | U160: 8.363491798 | V160: 1.339020236 | W160: 7.719933578 | X160: 1.49049334 | Y160: 7.568460474 | Z160: -1.441046186 | AA160: 0.3467222767 | AB160: 6.712231538 | AC160: 1.482614264 | AD160: 5.576339551 | AE160: 0.5220018975 | AF160: 6.536951917
P161: 158 | Q161: 17.38 | R161: -1.450224824 | S161: -1.450224824 | T161: 0.6990614716 | U161: 8.350713705 | V161: 1.345950511 | W161: 7.703824665 | X161: 1.498207584 | Y161: 7.551567592 | Z161: -1.450224824 | AA161: 0.3485167834 | AB161: 6.701258393 | AC161: 1.490287729 | AD161: 5.559487448 | AE161: 0.524703587 | AF161: 6.525071589
P162: 159 | Q162: 17.49 | R162: -1.459403462 | S162: -1.459403462 | T162: 0.7026504173 | U162: 8.337946121 | V162: 1.352860552 | W162: 7.687735986 | X162: 1.505899305 | Y162: 7.534697233 | Z162: -1.459403462 | AA162: 0.3503060507 | AB162: 6.690290487 | AC162: 1.497938789 | AD162: 5.542657749 | AE162: 0.5273973883 | AF162: 6.51319915
P163: 160 | Q163: 17.6 | R163: -1.4685821 | S163: -1.4685821 | T163: 0.7062288537 | U163: 8.325189046 | V163: 1.359750359 | W163: 7.671667541 | X163: 1.513568503 | Y163: 7.517849397 | Z163: -1.4685821 | AA163: 0.3520900786 | AB163: 6.679327821 | AC163: 1.505567446 | AD163: 5.525850454 | AE163: 0.5300833014 | AF163: 6.501334599
P164: 161 | Q164: 17.71 | R164: -1.477760738 | S164: -1.477760738 | T164: 0.7097967807 | U164: 8.312442481 | V164: 1.366619931 | W164: 7.655619331 | X164: 1.521215177 | Y164: 7.501024085 | Z164: -1.477760738 | AA164: 0.353868867 | AB164: 6.668370395 | AC164: 1.513173698 | AD164: 5.509065564 | AE164: 0.5327613265 | AF164: 6.489477935
P165: 162 | Q165: 17.82 | R165: -1.486939376 | S165: -1.486939376 | T165: 0.7133541984 | U165: 8.299706425 | V165: 1.373469269 | W165: 7.639591355 | X165: 1.528839328 | Y165: 7.484221296 | Z165: -1.486939376 | AA165: 0.355642416 | AB165: 6.657418208 | AC165: 1.520757546 | AD165: 5.492303078 | AE165: 0.5354314633 | AF165: 6.47762916
P166: 163 | Q166: 17.93 | R166: -1.496118014 | S166: -1.496118014 | T166: 0.7169011067 | U166: 8.286980879 | V166: 1.380298372 | W166: 7.623583614 | X166: 1.536440955 | Y166: 7.46744103 | Z166: -1.496118014 | AA166: 0.3574107255 | AB166: 6.64647126 | AC166: 1.52831899 | AD166: 5.475562996 | AE166: 0.538093712 | AF166: 6.465788274
P167: 164 | Q167: 18.04 | R167: -1.505296652 | S167: -1.505296652 | T167: 0.7204375057 | U167: 8.274265842 | V167: 1.387107241 | W167: 7.607596107 | X167: 1.544020059 | Y167: 7.450683288 | Z167: -1.505296652 | AA167: 0.3591737956 | AB167: 6.635529552 | AC167: 1.535858029 | AD167: 5.458845319 | AE167: 0.5407480726 | AF167: 6.453955275
P168: 165 | Q168: 18.15 | R168: -1.514475291 | S168: -1.514475291 | T168: 0.7239633953 | U168: 8.261561314 | V168: 1.393895876 | W168: 7.591628834 | X168: 1.55157664 | Y168: 7.433948069 | Z168: -1.514475291 | AA168: 0.3609316263 | AB168: 6.624593083 | AC168: 1.543374664 | AD168: 5.442150045 | AE168: 0.5433945451 | AF168: 6.442130164
P169: 166 | Q169: 18.26 | R169: -1.523653929 | S169: -1.523653929 | T169: 0.7274787755 | U169: 8.248867296 | V169: 1.400664276 | W169: 7.575681796 | X169: 1.559110698 | Y169: 7.417235373 | Z169: -1.523653929 | AA169: 0.3626842175 | AB169: 6.613661854 | AC169: 1.550868895 | AD169: 5.425477176 | AE169: 0.5460331293 | AF169: 6.430312942
P170: 167 | Q170: 18.37 | R170: -1.532832567 | S170: -1.532832567 | T170: 0.7309836464 | U170: 8.236183787 | V170: 1.407412442 | W170: 7.559754992 | X170: 1.566622232 | Y170: 7.400545201 | Z170: -1.532832567 | AA170: 0.3644315693 | AB170: 6.602735864 | AC170: 1.558340721 | AD170: 5.408826712 | AE170: 0.5486638255 | AF170: 6.418503608
P171: 168 | Q171: 18.48 | R171: -1.542011205 | S171: -1.542011205 | T171: 0.7344780079 | U171: 8.223510787 | V171: 1.414140373 | W171: 7.543848422 | X171: 1.574111243 | Y171: 7.383877552 | Z171: -1.542011205 | AA171: 0.3661736817 | AB171: 6.591815113 | AC171: 1.565790144 | AD171: 5.392198651 | AE171: 0.5512866335 | AF171: 6.406702162
P172: 169 | Q172: 18.59 | R172: -1.551189843 | S172: -1.551189843 | T172: 0.73796186 | U172: 8.210848297 | V172: 1.42084807 | W172: 7.527962087 | X172: 1.58157773 | Y172: 7.367232427 | Z172: -1.551189843 | AA172: 0.3679105546 | AB172: 6.580899602 | AC172: 1.573217162 | AD172: 5.375592995 | AE172: 0.5539015534 | AF172: 6.394908604
P173: 170 | Q173: 18.7 | R173: -1.560368481 | S173: -1.560368481 | T173: 0.7414352028 | U173: 8.198196316 | V173: 1.427535533 | W173: 7.512095986 | X173: 1.589021694 | Y173: 7.350609824 | Z173: -1.560368481 | AA173: 0.3696421881 | AB173: 6.569989331 | AC173: 1.580621775 | AD173: 5.359009743 | AE173: 0.5565085851 | AF173: 6.383122934
P174: 171 | Q174: 18.81 | R174: -1.569547119 | S174: -1.569547119 | T174: 0.7448980363 | U174: 8.185554844 | V174: 1.434202761 | W174: 7.496250119 | X174: 1.596443135 | Y174: 7.334009745 | Z174: -1.569547119 | AA174: 0.3713685822 | AB174: 6.559084298 | AC174: 1.588003985 | AD174: 5.342448896 | AE174: 0.5591077286 | AF174: 6.371345152
P175: 172 | Q175: 18.92 | R175: -1.578725757 | S175: -1.578725757 | T175: 0.7483503604 | U175: 8.172923882 | V175: 1.440849755 | W175: 7.480424487 | X175: 1.603842053 | Y175: 7.31743219 | Z175: -1.578725757 | AA175: 0.3730897368 | AB175: 6.548184506 | AC175: 1.59536379 | AD175: 5.325910453 | AE175: 0.5616989841 | AF175: 6.359575258
P176: 173 | Q176: 19.03 | R176: -1.587904396 | S176: -1.587904396 | T176: 0.7517921751 | U176: 8.160303429 | V176: 1.447476515 | W176: 7.46461909 | X176: 1.611218447 | Y176: 7.300877158 | Z176: -1.587904396 | AA176: 0.374805652 | AB176: 6.537289952 | AC176: 1.602701191 | AD176: 5.309394414 | AE176: 0.5642823513 | AF176: 6.347813253
P177: 174 | Q177: 19.14 | R177: -1.597083034 | S177: -1.597083034 | T177: 0.7552234805 | U177: 8.147693486 | V177: 1.45408304 | W177: 7.448833926 | X177: 1.618572318 | Y177: 7.284344649 | Z177: -1.597083034 | AA177: 0.3765163278 | AB177: 6.526400639 | AC177: 1.610016187 | AD177: 5.292900779 | AE177: 0.5668578305 | AF177: 6.336059136
P178: 175 | Q178: 19.25 | R178: -1.606261672 | S178: -1.606261672 | T178: 0.7586442765 | U178: 8.135094052 | V178: 1.460669331 | W178: 7.433068998 | X178: 1.625903665 | Y178: 7.267834663 | Z178: -1.606261672 | AA178: 0.3782217641 | AB178: 6.515516564 | AC178: 1.61730878 | AD178: 5.276429548 | AE178: 0.5694254215 | AF178: 6.324312907
P179: 176 | Q179: 19.36 | R179: -1.61544031 | S179: -1.61544031 | T179: 0.7620545631 | U179: 8.122505127 | V179: 1.467235387 | W179: 7.417324303 | X179: 1.633212489 | Y179: 7.251347201 | Z179: -1.61544031 | AA179: 0.379921961 | AB179: 6.504637729 | AC179: 1.624578968 | AD179: 5.259980722 | AE179: 0.5719851243 | AF179: 6.312574566
P180: 177 | Q180: 19.47 | R180: -1.624618948 | S180: -1.624618948 | T180: 0.7654543404 | U180: 8.109926711 | V180: 1.473781209 | W180: 7.401599843 | X180: 1.64049879 | Y180: 7.234882262 | Z180: -1.624618948 | AA180: 0.3816169184 | AB180: 6.493764133 | AC180: 1.631826752 | AD180: 5.2435543 | AE180: 0.574536939 | AF180: 6.300844113
P181: 178 | Q181: 19.58 | R181: -1.633797586 | S181: -1.633797586 | T181: 0.7688436083 | U181: 8.097358805 | V181: 1.480306797 | W181: 7.385895617 | X181: 1.647762567 | Y181: 7.218439847 | Z181: -1.633797586 | AA181: 0.3833066364 | AB181: 6.482895777 | AC181: 1.639052131 | AD181: 5.227150283 | AE181: 0.5770808656 | AF181: 6.289121548
P182: 179 | Q182: 19.69 | R182: -1.642976224 | S182: -1.642976224 | T182: 0.7722223669 | U182: 8.084801409 | V182: 1.48681215 | W182: 7.370211626 | X182: 1.655003821 | Y182: 7.202019954 | Z182: -1.642976224 | AA182: 0.384991115 | AB182: 6.472032661 | AC182: 1.646255106 | AD182: 5.210768669 | AE182: 0.579616904 | AF182: 6.277406872
P183: 180 | Q183: 19.8 | R183: -1.652154862 | S183: -1.652154862 | T183: 0.7755906161 | U183: 8.072254521 | V183: 1.493297269 | W183: 7.354547869 | X183: 1.662222552 | Y183: 7.185622585 | Z183: -1.652154862 | AA183: 0.3866703541 | AB183: 6.461174783 | AC183: 1.653435677 | AD183: 5.19440946 | AE183: 0.5821450543 | AF183: 6.265700083
P184: 181 | Q184: 19.91 | R184: -1.661333501 | S184: -1.661333501 | T184: 0.778948356 | U184: 8.059718143 | V184: 1.499762153 | W184: 7.338904346 | X184: 1.669418759 | Y184: 7.16924774 | Z184: -1.661333501 | AA184: 0.3883443538 | AB184: 6.450322146 | AC184: 1.660593844 | AD184: 5.178072656 | AE184: 0.5846653164 | AF184: 6.254001183
P185: 182 | Q185: 20.02 | R185: -1.670512139 | S185: -1.670512139 | T185: 0.7822955865 | U185: 8.047192275 | V185: 1.506206804 | W185: 7.323281058 | X185: 1.676592443 | Y185: 7.152895418 | Z185: -1.670512139 | AA185: 0.3900131141 | AB185: 6.439474747 | AC185: 1.667729606 | AD185: 5.161758255 | AE185: 0.5871776904 | AF185: 6.242310171
P186: 183 | Q186: 20.13 | R186: -1.679690777 | S186: -1.679690777 | T186: 0.7856323077 | U186: 8.034676915 | V186: 1.512631219 | W186: 7.307678004 | X186: 1.683743604 | Y186: 7.136565619 | Z186: -1.679690777 | AA186: 0.3916766349 | AB186: 6.428632588 | AC186: 1.674842964 | AD186: 5.145466259 | AE186: 0.5896821762 | AF186: 6.230627047
P187: 184 | Q187: 20.24 | R187: -1.688869415 | S187: -1.688869415 | T187: 0.7889585194 | U187: 8.022172066 | V187: 1.519035401 | W187: 7.292095184 | X187: 1.690872242 | Y187: 7.120258343 | Z187: -1.688869415 | AA187: 0.3933349163 | AB187: 6.417795669 | AC187: 1.681933918 | AD187: 5.129196667 | AE187: 0.5921787739 | AF187: 6.218951811
P188: 185 | Q188: 20.35 | R188: -1.698048053 | S188: -1.698048053 | T188: 0.7922742219 | U188: 8.009677725 | V188: 1.525419348 | W188: 7.276532599 | X188: 1.697978356 | Y188: 7.103973591 | Z188: -1.698048053 | AA188: 0.3949879583 | AB188: 6.406963989 | AC188: 1.689002468 | AD188: 5.112949479 | AE188: 0.5946674834 | AF188: 6.207284463
P189: 186 | Q189: 20.46 | R189: -1.707226691 | S189: -1.707226691 | T189: 0.7955794149 | U189: 7.997193894 | V189: 1.53178306 | W189: 7.260990248 | X189: 1.705061946 | Y189: 7.087711363 | Z189: -1.707226691 | AA189: 0.3966357608 | AB189: 6.396137548 | AC189: 1.696048613 | AD189: 5.096724696 | AE189: 0.5971483048 | AF189: 6.195625004
P190: 187 | Q190: 20.57 | R190: -1.716405329 | S190: -1.716405329 | T190: 0.7988740987 | U190: 7.984720572 | V190: 1.538126539 | W190: 7.245468132 | X190: 1.712123014 | Y190: 7.071471657 | Z190: -1.716405329 | AA190: 0.3982783239 | AB190: 6.385316347 | AC190: 1.703072354 | AD190: 5.080522317 | AE190: 0.5996212381 | AF190: 6.183973433
P191: 188 | Q191: 20.68 | R191: -1.725583967 | S191: -1.725583967 | T191: 0.802158273 | U191: 7.97225776 | V191: 1.544449782 | W191: 7.22996625 | X191: 1.719161558 | Y191: 7.055254475 | Z191: -1.725583967 | AA191: 0.3999156476 | AB191: 6.374500385 | AC191: 1.710073691 | AD191: 5.064342342 | AE191: 0.6020862832 | AF191: 6.172329749
P192: 189 | Q192: 20.79 | R192: -1.734762606 | S192: -1.734762606 | T192: 0.805431938 | U192: 7.959805456 | V192: 1.550752792 | W192: 7.214484602 | X192: 1.726177578 | Y192: 7.039059816 | Z192: -1.734762606 | AA192: 0.4015477318 | AB192: 6.363689663 | AC192: 1.717052623 | AD192: 5.048184771 | AE192: 0.6045434402 | AF192: 6.160693954
P193: 190 | Q193: 20.9 | R193: -1.743941244 | S193: -1.743941244 | T193: 0.8086950937 | U193: 7.947363663 | V193: 1.557035567 | W193: 7.199023189 | X193: 1.733171076 | Y193: 7.022887681 | Z193: -1.743941244 | AA193: 0.4031745766 | AB193: 6.35288418 | AC193: 1.724009151 | AD193: 5.032049605 | AE193: 0.606992709 | AF193: 6.149066047
P194: 191 | Q194: 21.01 | R194: -1.753119882 | S194: -1.753119882 | T194: 0.8119477399 | U194: 7.934932378 | V194: 1.563298108 | W194: 7.18358201 | X194: 1.74014205 | Y194: 7.006738069 | Z194: -1.753119882 | AA194: 0.4047961819 | AB194: 6.342083936 | AC194: 1.730943275 | AD194: 5.015936843 | AE194: 0.6094340897 | AF194: 6.137446028
P195: 192 | Q195: =(Rozpeti/1000)*P195 -> 21.12 | R195: =$R$2*Q195 -> -1.76229852 | S195: -1.76229852 | T195: =($Q195*(Rozpeti-$Q195))/(2*$C$11) -> 0.8151898769 | U195: 7.922511603 | V195: =($Q195*(Rozpeti-$Q195))/(2*$M$11) -> 1.569540414 | W195: 7.168161066 | X195: =($Q195*(Rozpeti-$Q195))/(2*$L$11) -> 1.7470905 | Y195: 6.99061098 | Z195: -1.76229852 | AA195: =($Q195*(Rozpeti-$Q195))/(2*$C$32) -> 0.4064125478 | AB195: 6.331288932 | AC195: =($Q195*(Rozpeti-$Q195))/(2*$M$32) -> 1.737854995 | AD195: 4.999846485 | AE195: =($Q195*(Rozpeti-$Q195))/(2*$L$32) -> 0.6118675822 | AF195: 6.125833898
P196: 193 | Q196: 21.23 | R196: -1.771477158 | S196: -1.771477158 | T196: 0.8184215044 | U196: 7.910101337 | V196: 1.575762486 | W196: 7.152760356 | X196: 1.754016428 | Y196: 6.974506414 | Z196: -1.771477158 | AA196: 0.4080236743 | AB196: 6.320499168 | AC196: 1.74474431 | AD196: 4.983778532 | AE196: 0.6142931866 | AF196: 6.114229655
P197: 194 | Q197: 21.34 | R197: -1.780655796 | S197: =$S$3*Q197 -> -1.780655796 | T197: 0.8216426226 | U197: =$U$3-T197+$S197 -> 7.897701581 | V197: 1.581964324 | W197: =$W$3-V197+$S197 -> 7.13737988 | X197: 1.760919831 | Y197: =$Y$3-X197+$S197 -> 6.958424372 | Z197: =$Z$3*Q197 -> -1.780655796 | AA197: 0.4096295613 | AB197: =$AB$3-AA197+$Z197 -> 6.309714642 | AC197: 1.751611221 | AD197: =$AD$3-AC197+$Z197 -> 4.967732983 | AE197: 0.6167109029 | AF197: =$AF$3-AE197+$Z197 -> 6.102633301
P198: 195 | Q198: 21.45 | R198: -1.789834434 | S198: -1.789834434 | T198: 0.8248532315 | U198: 7.885312334 | V198: 1.588145927 | W198: 7.122019639 | X198: 1.767800712 | Y198: 6.942364854 | Z198: -1.789834434 | AA198: 0.4112302089 | AB198: 6.298935357 | AC198: 1.758455728 | AD198: 4.951709838 | AE198: 0.619120731 | AF198: 6.091044835
P199: 196 | Q199: 21.56 | R199: -1.799013072 | S199: -1.799013072 | T199: 0.828053331 | U199: 7.872933597 | V199: 1.594307296 | W199: 7.106679632 | X199: 1.774659069 | Y199: 6.926327858 | Z199: -1.799013072 | AA199: 0.4128256171 | AB199: 6.28816131 | AC199: 1.76527783 | AD199: 4.935709097 | AE199: 0.6215226709 | AF199: 6.079464257
P200: 197 | Q200: 21.67 | R200: -1.808191711 | S200: -1.808191711 | T200: 0.8312429211 | U200: 7.860565368 | V200: 1.60044843 | W200: 7.091359859 | X200: 1.781494903 | Y200: 6.910313386 | Z200: -1.808191711 | AA200: 0.4144157858 | AB200: 6.277392504 | AC200: 1.772077528 | AD200: 4.919730761 | AE200: 0.6239167228 | AF200: 6.067891567
... 803 more rows

Sheet Parametry-vodiče,lana,KZL,SDOK
A1: Fázové vodiče | J1: Zemníci lana, SDOK, KZL
A2: Typ lana | B2: d [mm] | C2: S [mm2] | D2: m [kg.km-1] | E2: F [N] | F2: E [Mpa] | G2: α [K-1*10-5] | H2: γ [N.m-1.mm-2] | J2: Typ lana | K2: d [mm] | L2: S [mm2] | M2: m [kg.km-1] | N2: F [kN] | O2: E [Mpa] | P2: α [K-1*10-5] | Q2: γ [N.m-1.mm-2]
A3: - | B3: 0 | C3: 0 | D3: 0 | E3: 0 | F3: 0 | G3: 0 | H3: 0 | J3: - | K3: 0 | L3: 0 | M3: 0 | N3: 0 | O3: 0 | P3: 0 | Q3: 0
A4: 35 mm2 AlFe 3 | B4: 9.41 | C4: 47.29 | D4: 195.2 | E4: 18940 | F4: 101989 | G4: 1.76 | H4: =((D4/1000)*9.80665)/C4 -> 0.04047913047 | J4: 35 mm2 Fe 540 | K4: 7.5 | L4: 34.36 | M4: 268.71 | N4: 18.9 | O4: 180000 | P4: 1.1 | Q4: =((M4/1000)*9.80665)/L4 -> 0.07669222705
A5: 35 mm2 AlFe 6 | B5: 8.4 | C5: 43.1 | D5: 151.13 | E5: 12360 | F5: 88260 | G5: 1.975 | H5: 0.0343869841 | J5: 50 mm2 Fe 540 | K5: 9 | L5: 49.48 | M5: 386.91 | N5: 27 | O5: 180000 | P5: 1.1 | Q5: 0.07668332562
A6: 42/7 ZSNP | B6: 9 | C6: 49.48 | D6: 171.59 | E6: 15087 | F6: 80004 | G6: 1.8174 | H6: 0.03400814619 | J6: 70 mm2 Fe 980 | K6: 11.2 | L6: 74.87 | M6: 582.49 | N6: 69.7 | O6: 175000 | P6: 1.1 | Q6: 0.07629592038
A7: 42-AL1/7ST1A | B7: 9 | C7: 49.48 | D7: 171.2 | E7: 15270 | F7: 79000 | G7: 1.86 | H7: 0.03393085044 | J7: 95 mm2 Fe 980 | K7: 12.5 | L7: 93.27 | M7: 766.37 | N7: 85 | O7: 192910 | P7: 1.1 | Q7: 0.08057813188
A8: 50 mm2 AlFe 3 | B8: 11.13 | C8: 66.19 | D8: 272.5 | E8: 26070 | F8: 101989 | G8: 1.76 | H8: 0.04037335134 | J8: SDOK 1 -STD7D135/48657N | K8: 13.5 | L8: 146 | M8: 140 | N8: 25.6 | O8: 12380 | P8: 1 | Q8: 0.009403636986
A9: 50 mm2 AlFe 4 | B9: 11.2 | C9: 74.4 | D9: 282.6 | E9: 25860 | F9: 95712 | G9: 1.85 | H9: 0.03724945282 | J9: SDOK 2 -STD7D145/48657N | K9: 14.5 | L9: 157 | M9: 154 | N9: 33.6 | O9: 12380 | P9: 0.5 | Q9: 0.009619261783
A10: 50 mm2 AlFe 6 | B10: 9.45 | C10: 54.55 | D10: 191.27 | E10: 15640 | F10: 88260 | G10: 1.975 | H10: 0.03438529689 | J10: SDOK 3 -STD7D155/48657N | K10: 15.5 | L10: 178 | M10: 175 | N10: 41.6 | O10: 17790 | P10: 0.6 | Q10: 0.009641369382
A11: 60/14 ZSNP | B11: 12 | C11: 75.14 | D11: 283.18 | E11: 25976 | F11: 80032 | G11: 1.7946 | H11: 0.03695830645 | J11: KZL 2S 2/24 (M93/R62-64) | K11: 13.2 | L11: 93.15 | M11: 446 | N11: 62.1 | O11: 104600 | P11: 1.67 | Q11: 0.04695400859
A12: 66-AL1/11-ST1A | B12: 12 | C12: 77.04 | D12: 266.2 | E12: 23210 | F12: 73900 | G12: 1.89 | H12: 0.0338853872
A13: 70/11 ZSNP | B13: 12 | C13: 82.46 | D13: 285.63 | E13: 23288 | F13: 73080 | G13: 1.9136 | H13: 0.03396887508 | J13: d – průměr vodiče
A14: 70/11-1 ZSNP | B14: 11.7 | C14: 77.05 | D14: 269.75 | E14: 21268 | F14: 76789 | G14: 1.9064 | H14: 0.03433282073 | J14: S – průřez vodiče
A15: 70 mm2 AlFe 3 | B15: 13.23 | C15: 94.12 | D15: 386.6 | E15: 36820 | F15: 101989 | G15: 1.76 | H15: 0.04028103368 | J15: M – hmotnost vodiče
A16: 70 mm2 AlFe 4 | B16: 12.6 | C16: 94.15 | D16: 357.3 | E16: 37320 | F16: 95712 | G16: 1.85 | H16: 0.03721631487 | J16: F – jmenovitá pevnost
A17: 70-1 mm2 AlFe 6 | B17: 11.25 | C17: 77.31 | D17: 270.9 | E17: 21570 | F17: 88260 | G17: 1.975 | H17: 0.03436323225 | J17: E – modul pružnosti
A18: 70-2 mm2 AlFe 6 | B18: 11.4 | C18: 76.92 | D18: 272.8 | E18: 23040 | F18: 88260 | G18: 1.975 | H18: 0.03477969475 | J18: α – součinitel délkové roztažnosti
A19: 95 mm2 AlFe 3 | B19: 14.58 | C19: 130.02 | D19: 526.8 | E19: 48420 | F19: 101989 | G19: 1.76 | H19: 0.03973345039 | J19: γ – měrná tíha
A20: 95 mm2 AlFe 4 | B20: 14 | C20: 116.24 | D20: 442.9 | E20: 39560 | F20: 95712 | G20: 1.85 | H20: 0.03736549626
A21: 95-1 mm2 AlFe 6 | B21: 13.5 | C21: 111.27 | D21: 390.2 | E21: 30200 | F21: 88260 | G21: 1.975 | H21: 0.03438981603
A22: 95-2 mm2 AlFe 6 | B22: 13.58 | C22: 107.67 | D22: 384.62 | E22: 32200 | F22: 88260 | G22: 1.975 | H22: 0.03503142679
A23: 100/25 ZSNP | B23: 14.6 | C23: 124.7 | D23: 478.45 | E23: 43542 | F23: 81373 | G23: 1.774 | H23: 0.03762623651
A24: 100-AL1/25-ST1A | B24: 14.6 | C24: 124.7 | D24: 469.6 | E24: 46910 | F24: 81800 | G24: 1.77 | H24: 0.03693025533
A25: 110/22 ZSNP | B25: 14.96 | C25: 132.33 | D25: 484.9 | E25: 42017 | F25: 77440 | G25: 1.8365 | H25: 0.03593474333
A26: 110-AL1/22-ST1A | B26: 14.96 | C26: 132.33 | D26: 476.9 | E26: 45590 | F26: 77400 | G26: 1.83 | H26: 0.03534188306
A27: 120 mm2 AlFe 3 | B27: 16.88 | C27: 170.18 | D27: 704.3 | E27: 68710 | F27: 101989 | G27: 1.76 | H27: 0.04058540131
A28: 120 mm2 AlFe 4 | B28: 15.68 | C28: 145.82 | D28: 554.7 | E28: 49620 | F28: 95712 | G28: 1.85 | H28: 0.03730454502
A29: 120 mm2 AlFe 6 | B29: 16 | C29: 149.62 | D29: 535.9 | E29: 44660 | F29: 88260 | G29: 1.975 | H29: 0.03512487458
A30: 143-AL1/25-ST1A | B30: 16.96 | C30: 168.11 | D30: 589.3 | E30: 53290 | F30: 74200 | G30: 1.87 | H30: 0.03437665127
A31: 150 mm2 AlFe 3 | B31: 17.96 | C31: 191.4 | D31: 796.8 | E31: 78260 | F31: 101989 | G31: 1.76 | H31: 0.04082517618
A32: 150 mm2 AlFe 4 | B32: 17.5 | C32: 181.63 | D32: 690.3 | E32: 61810 | F32: 95712 | G32: 1.85 | H32: 0.0372709932
A33: 150 mm2 AlFe 6 | B33: 16.96 | C33: 168.1 | D33: 601.5 | E33: 48893 | F33: 88260 | G33: 1.975 | H33: 0.03509042222
A34: 150/25 ZSNP | B34: 16.96 | C34: 168.11 | D34: 597.8 | E34: 48890 | F34: 75079 | G34: 1.8771 | H34: 0.0348724964
A35: 184-AL1/30-ST1A | B35: 19 | C35: 213.6 | D35: 747 | E35: 62570 | F35: 74200 | G35: 1.89 | H35: 0.03429572823
A36: 185 mm2 AlFe 3 | B36: 20.39 | C36: 235.6 | D36: 974.6 | E36: 94360 | F36: 101989 | G36: 1.76 | H36: 0.04056689767
A37: 185 mm2 AlFe 4 | B37: 19.6 | C37: 227.83 | D37: 864.7 | E37: 75870 | F37: 95712 | G37: 1.85 | H37: 0.03721990192
A38: 185 mm2 AlFe 6 | B38: 19.08 | C38: 214.41 | D38: 761.6 | E38: 61460 | F38: 88260 | G38: 1.975 | H38: 0.03483393797
A39: 180/59 ZSNP | B39: 20.39 | C39: 235.61 | D39: 971.26 | E39: 94360 | F39: 89478 | G39: 1.6846 | H39: 0.04042615712
A40: 185/31 ZSNP | B40: 19.08 | C40: 214.4 | D40: 756.78 | E40: 61463 | F40: 74567 | G40: 1.8863 | H40: 0.03461509602

Sheet Data-námraza,vítr,součinitelé
A1: Námrazové oblasti | B1: Referenční zatížení námrazou IR50 [N/m] | G1: Do 24m výšky | M1: Od 24 do 40m výšky | T1: Kategorie terénu | U1: z0 [-] | V1: kr [-] | X1: Hodnoty součinitele rozpětí Gc | AE1: Dílčí součinitelé zatížení a minimální teploty
B2: d ≤ 30 mm | D2: d > 30 mm | G2: rychlost větru Vh [m/s] | M2: rychlost větru Vh [m/s] | T2: I. | U2: 0.01 | V2: =0.189*(U2/0.05)^0.07 -> 0.168862768 | X2: referenční výška 10m | AE2: úroveň spolehlivosti | AG2: γW [-] | AH2: ΨW [-] | AI2: γI [-] | AJ2: ΨI [-] | AK2: tmin [°C]
A3: Bez námrazy | B3: 0 | C3: 0 | D3: 0 | E3: 0 | I3: kategorie terénu | O3: kategorie terénu | T3: II. | U3: 0.05 | V3: =0.189*(U3/0.05)^0.07 -> 0.189 | Z3: kategorie terénu | AF3: Úroveň spolehlivosti 1 | AG3: 1 | AH3: 0.25 | AI3: 1 | AJ3: 0.35 | AK3: -30
A4: I0 | B4: 1.064 | C4: 0.128 | D4: 3.963 | E4: 0.0314 | I4: I. | J4: II. | K4: III. | L4: IV. | O4: I. | P4: II. | Q4: III. | R4: IV. | T4: III. | U4: 0.3 | V4: =0.189*(U4/0.05)^0.07 -> 0.2142557035 | Z4: I. | AA4: II. | AB4: III. | AC4: IV. | AF4: Úroveň spolehlivosti 2 | AG4: 1.2 | AH4: 0.25 | AI4: 1.25 | AJ4: 0.35 | AK4: -35
A5: I1 | B5: 3.174 | C5: 0.2212 | D5: 8.515 | E5: 0.0432 | G5: Větrné oblasti | H5: I. | I5: =J5*$U$8*$U$9*$V$2*LN($U$15/$U$2) -> 26.24541023 | J5: 22.5 | K5: =J5*$U$8*$U$9*$V$4*LN($U$15/$U$4) -> 16.90425066 | L5: =J5*$U$8*$U$9*$V$5*LN($U$15/$U$5) -> 12.07625043 | M5: Větrné oblasti | N5: I. | O5: =J5*$U$8*$U$9*$V$2*LN($U$16/$U$2) -> 30.41949125 | P5: =J5*$U$8*$U$9*$V$3*LN($U$16/$U$3) -> 27.20294336 | Q5: =J5*$U$8*$U$9*$V$4*LN($U$16/$U$4) -> 22.2003895 | R5: =J5*$U$8*$U$9*$V$5*LN($U$16/$U$5) -> 17.83808619 | T5: IV. | U5: 1 | V5: =0.189*(U5/0.05)^0.07 -> 0.2330955078 | X5: Lm [m] | Y5: 100 | Z5: 0.75 | AA5: 0.7 | AB5: 0.62 | AC5: 0.54 | AF5: Úroveň spolehlivosti 3 | AG5: 1.4 | AH5: 0.25 | AI5: 1.5 | AJ5: 0.35 | AK5: -40
A6: I2 | B6: 8.661 | C6: 0.3653 | D6: 17.53 | E6: 0.07 | H6: II. | I6: =J6*$U$8*$U$9*$V$2*LN($U$15/$U$2) -> 29.16156692 | J6: 25 | K6: =J6*$U$8*$U$9*$V$4*LN($U$15/$U$4) -> 18.78250073 | L6: =J6*$U$8*$U$9*$V$5*LN($U$15/$U$5) -> 13.41805604 | N6: II. | O6: =J6*$U$8*$U$9*$V$2*LN($U$16/$U$2) -> 33.79943472 | P6: =J6*$U$8*$U$9*$V$3*LN($U$16/$U$3) -> 30.22549262 | Q6: =J6*$U$8*$U$9*$V$4*LN($U$16/$U$4) -> 24.66709945 | R6: =J6*$U$8*$U$9*$V$5*LN($U$16/$U$5) -> 19.82009577 | Y6: 200 | Z6: 0.69 | AA6: 0.63 | AB6: 0.55 | AC6: 0.47
A7: I3 | B7: 15 | C7: 0.481 | D7: 25.46 | E7: 0.132 | H7: III. | I7: =J7*$U$8*$U$9*$V$2*LN($U$15/$U$2) -> 32.07772361 | J7: 27.5 | K7: =J7*$U$8*$U$9*$V$4*LN($U$15/$U$4) -> 20.6607508 | L7: =J7*$U$8*$U$9*$V$5*LN($U$15/$U$5) -> 14.75986164 | N7: III. | O7: =J7*$U$8*$U$9*$V$2*LN($U$16/$U$2) -> 37.17937819 | P7: =J7*$U$8*$U$9*$V$3*LN($U$16/$U$3) -> 33.24804188 | Q7: =J7*$U$8*$U$9*$V$4*LN($U$16/$U$4) -> 27.13380939 | R7: =J7*$U$8*$U$9*$V$5*LN($U$16/$U$5) -> 21.80210535 | T7: Součinitelé | Y7: 300 | Z7: 0.66 | AA7: 0.6 | AB7: 0.51 | AC7: 0.43
A8: I5 | B8: 29 | C8: 0.668 | D8: 43.84 | E8: 0.174 | H8: IV. | I8: =J8*$U$8*$U$9*$V$2*LN($U$15/$U$2) -> 34.99388031 | J8: 30 | K8: =J8*$U$8*$U$9*$V$4*LN($U$15/$U$4) -> 22.53900087 | L8: =J8*$U$8*$U$9*$V$5*LN($U$15/$U$5) -> 16.10166724 | N8: IV. | O8: =J8*$U$8*$U$9*$V$2*LN($U$16/$U$2) -> 40.55932167 | P8: =J8*$U$8*$U$9*$V$3*LN($U$16/$U$3) -> 36.27059115 | Q8: =J8*$U$8*$U$9*$V$4*LN($U$16/$U$4) -> 29.60051934 | R8: =J8*$U$8*$U$9*$V$5*LN($U$16/$U$5) -> 23.78411492 | T8: Cdir | U8: 1 | V8: [-] | X8: referenční výška 30m
A9: I8 | B9: 51.7 | C9: 0.893 | D9: 73.89 | E9: 0.153 | H9: V. | I9: =J9*$U$8*$U$9*$V$2*LN($U$15/$U$2) -> 41.99265637 | J9: 36 | K9: =J9*$U$8*$U$9*$V$4*LN($U$15/$U$4) -> 27.04680105 | L9: =J9*$U$8*$U$9*$V$5*LN($U$15/$U$5) -> 19.32200069 | N9: V. | O9: =J9*$U$8*$U$9*$V$2*LN($U$16/$U$2) -> 48.671186 | P9: =J9*$U$8*$U$9*$V$3*LN($U$16/$U$3) -> 43.52470937 | Q9: =J9*$U$8*$U$9*$V$4*LN($U$16/$U$4) -> 35.52062321 | R9: =J9*$U$8*$U$9*$V$5*LN($U$16/$U$5) -> 28.54093791 | T9: CO | U9: 1 | V9: [-] | Z9: kategorie terénu
A10: I12 | B10: 83.66 | C10: 1.135 | D10: 107.8 | E10: 0.33 | G10: střední tlak větru qh [Pa] | M10: střední tlak větru qh [Pa] | T10: Cc | U10: 1 | V10: [-] | Z10: I. | AA10: II. | AB10: III. | AC10: IV.
A11: I18 | B11: 133.53 | C11: 1.435 | D11: 176.58 | I11: kategorie terénu | O11: kategorie terénu | T11: CIc | U11: 1.1 | V11: [-] | X11: Lm [m] | Y11: 100 | Z11: 0.81 | AA11: 0.77 | AB11: 0.72 | AC11: 0.67
I12: I. | J12: II. | K12: III. | L12: IV. | O12: I. | P12: II. | Q12: III. | R12: IV. | T12: BI | U12: 0.656 | V12: [-] | Y12: 200 | Z12: 0.75 | AA12: 0.71 | AB12: 0.65 | AC12: 0.6
G13: Větrné oblasti | H13: I. | I13: =0.5*$U$19*I5^2 -> 430.5134738 | J13: 316.40625 | K13: 178.5960564 | L13: 91.14739032 | M13: Větrné oblasti | N13: I. | O13: =0.5*$U$19*O5^2 -> 578.3409049 | P13: 462.5000796 | Q13: 308.0358088 | R13: 198.8733244 | Y13: 300 | Z13: 0.72 | AA13: 0.68 | AB13: 0.61 | AC13: 0.56
H14: II. | I14: 531.4981158 | J14: 390.625 | K14: 220.4889585 | L14: 112.5276424 | N14: II. | O14: 714.0011172 | P14: 570.9877526 | Q14: 380.291122 | R14: 245.5226227 | T14: Referenční výška
H15: III. | I15: 643.1127201 | J15: 472.65625 | K15: 266.7916398 | L15: 136.1584473 | N15: III. | O15: 863.9413518 | P15: 690.8951807 | Q15: 460.1522576 | R15: 297.0823734 | T15: hdo 24m | U15: 10 | V15: [m]
H16: IV. | I16: 765.3572868 | J16: 562.5 | K16: 317.5041003 | L16: 162.039805 | N16: IV. | O16: 1028.161609 | P16: 822.2223638 | Q16: 547.6192157 | R16: 353.5525766 | T16: h24 až 40m | U16: 30 | V16: [m]
H17: V. | I17: 1102.114493 | J17: 810 | K17: 457.2059044 | L17: 233.3373192 | N17: V. | O17: 1480.552717 | P17: 1184.000204 | Q17: 788.5716706 | R17: 509.1157104
G18: max. tlak větru qp [Pa] | M18: max. tlak větru qp [Pa] | T18: Hustoty
I19: kategorie terénu | O19: kategorie terénu | T19: ρvzduch | U19: 1.25 | V19: [kg.m-3]
I20: I. | J20: II. | K20: III. | L20: IV. | O20: I. | P20: II. | Q20: III. | R20: IV. | T20: ρnámraza | U20: 500 | V20: [kg.m-3]
G21: Větrné oblasti | H21: I. | I21: =(1+7*(1/($U$9*LN($U$15/$U$2))))*I13 -> 866.7759346 | J21: =(1+7*(1/($U$9*LN($U$15/$U$3))))*J13 -> 734.4340118 | K21: =(1+7*(1/($U$9*LN($U$15/$U$4))))*K13 -> 535.1201554 | L21: =(1+7*(1/($U$9*LN($U$15/$U$5))))*L13 -> 368.2410509 | M21: Větrné oblasti | N21: I. | O21: =(1+7*(1/($U$9*LN($U$15/$U$2))))*O13 -> 1164.404853 | P21: =(1+7*(1/($U$9*LN($U$15/$U$3))))*P13 -> 1073.543234 | Q21: =(1+7*(1/($U$9*LN($U$15/$U$4))))*Q13 -> 922.9552612 | R21: =(1+7*(1/($U$9*LN($U$15/$U$5))))*R13 -> 803.4604359
H22: II. | I22: =(1+7*(1/($U$9*LN($U$15/$U$2))))*I14 -> 1070.093746 | J22: =(1+7*(1/($U$9*LN($U$15/$U$3))))*J14 -> 906.7086565 | K22: =(1+7*(1/($U$9*LN($U$15/$U$4))))*K14 -> 660.6421671 | L22: =(1+7*(1/($U$9*LN($U$15/$U$5))))*L14 -> 454.6185814 | N22: II. | O22: =(1+7*(1/($U$9*LN($U$15/$U$2))))*O14 -> 1437.536856 | P22: =(1+7*(1/($U$9*LN($U$15/$U$3))))*P14 -> 1325.362017 | Q22: =(1+7*(1/($U$9*LN($U$15/$U$4))))*Q14 -> 1139.45094 | R22: =(1+7*(1/($U$9*LN($U$15/$U$5))))*R14 -> 991.9264641
H23: III. | I23: =(1+7*(1/($U$9*LN($U$15/$U$2))))*I15 -> 1294.813433 | J23: =(1+7*(1/($U$9*LN($U$15/$U$3))))*J15 -> 1097.117474 | K23: =(1+7*(1/($U$9*LN($U$15/$U$4))))*K15 -> 799.3770222 | L23: =(1+7*(1/($U$9*LN($U$15/$U$5))))*L15 -> 550.0884835 | N23: III. | O23: =(1+7*(1/($U$9*LN($U$15/$U$2))))*O15 -> 1739.419596 | P23: =(1+7*(1/($U$9*LN($U$15/$U$3))))*P15 -> 1603.688041 | Q23: =(1+7*(1/($U$9*LN($U$15/$U$4))))*Q15 -> 1378.735637 | R23: =(1+7*(1/($U$9*LN($U$15/$U$5))))*R15 -> 1200.231022
H24: IV. | I24: =(1+7*(1/($U$9*LN($U$15/$U$2))))*I16 -> 1540.934995 | J24: =(1+7*(1/($U$9*LN($U$15/$U$3))))*J16 -> 1305.660465 | K24: =(1+7*(1/($U$9*LN($U$15/$U$4))))*K16 -> 951.3247207 | L24: =(1+7*(1/($U$9*LN($U$15/$U$5))))*L16 -> 654.6507572 | N24: IV. | O24: =(1+7*(1/($U$9*LN($U$15/$U$2))))*O16 -> 2070.053073 | P24: =(1+7*(1/($U$9*LN($U$15/$U$3))))*P16 -> 1908.521305 | Q24: =(1+7*(1/($U$9*LN($U$15/$U$4))))*Q16 -> 1640.809353 | R24: =(1+7*(1/($U$9*LN($U$15/$U$5))))*R16 -> 1428.374108
H25: V. | I25: =(1+7*(1/($U$9*LN($U$15/$U$2))))*I17 -> 2218.946393 | J25: =(1+7*(1/($U$9*LN($U$15/$U$3))))*J17 -> 1880.15107 | K25: =(1+7*(1/($U$9*LN($U$15/$U$4))))*K17 -> 1369.907598 | L25: =(1+7*(1/($U$9*LN($U$15/$U$5))))*L17 -> 942.6970903 | N25: V. | O25: =(1+7*(1/($U$9*LN($U$15/$U$2))))*O17 -> 2980.876425 | P25: =(1+7*(1/($U$9*LN($U$15/$U$3))))*P17 -> 2748.270679 | Q25: =(1+7*(1/($U$9*LN($U$15/$U$4))))*Q17 -> 2362.765469 | R25: =(1+7*(1/($U$9*LN($U$15/$U$5))))*R17 -> 2056.858716
